Workbook

Sheet ES(1)C
B2: Excel Business Statistical Analysis: Data & Statistics
B12: Excel Business Statistics 1
C19: =LEN(C18) -> 0
H23: Microsoft 365 Excel

Sheet ES(2)C
B2: Excel Business Statistical Analysis: Structure of Excel files
B12: Excel Business Statistics 2
C19: =LEN(C18) -> 0
H23: Microsoft 365 Excel

Sheet ES(3)C
B2: Excel Business Statistical Analysis: Building Worksheet Formula Models
B12: Excel Business Statistics 3
C19: =LEN(C18) -> 0
H23: Microsoft 365 Excel

Sheet ES(4)C
B2: Excel Business Statistical Analysis: Power Query & PivotTable 1) PivotTable to build Frequency Distribution 2) Power Query to Import & Transform CSV File 3) PivotTable Grouping Feature for Quantitative Data to Build Frequency Distributions
B12: Excel Business Statistics 4
C19: =LEN(C18) -> 0
H23: Microsoft 365 Excel

Sheet TopicsCh(1)
B2: Video | C2: Chapter 1: Data, Statistics & Excel
B3: 1 | C3: Folder & files in class
C4: Data Analysis, Data, Tables
C5: What is statistics?
B6: 2 | C6: Microsoft 365 Excel:
C7: 1) Structure of Excel, Cells, Worksheet, Workbook, Ribbon, QAT
C8: 2) Excel workbook conventions for class
C9: 3) Data and Alignment in Excel
C10: 4) Keyboards
C11: 5) What Excel does
B12: 3 | C12: 6) Worksheet formulas elements
C13: 7) Worksheet formula models
C14: 8) Types of worksheet formulas
C15: 9) % Formulas
B16: 4 | C16: 10) PivotTable to build Frequency Distribution
C17: 11) Power Query to Import & Transform CSV File
C18: 12) PivotTable Grouping Feature for Quantitative Data to Build Frequency Distributions

Sheet Data & Table
B2: Data Analysis = Convert raw data into useful information to gain insight and make decisions.
B3: Synonyms: Data Analytics, Analytics, Business Intelligence, Statistical Analysis, Mathematical Analysis, Data Analysis
B4: Goal: help make data-driven decisions, which tends to be more accurate and help to achieve goals more consistently
B6: Raw Data = data stored in its smallest form in a cell
B8: Not Raw Data:
B10: Data about Google Stock
B11: =_xlfn.TEXTJOIN(", ",,TEXT(A30,"m/d/yyy"),DOLLAR(B30),FIXED(C30,0),D30) -> 10/25/2021, $2,775.46, 1,054,085, Google
B13: Raw Data:
B15: Date | C15: Close | D15: Volume | F15: Company
B16: 44494 | C16: 2775.46 | D16: 1054085 | F16: Google
B18: Proper Data Set = Data Set = Table
B19: Table is made up of: | I19: Textbook definitions:
B20: Field = column in table | I20: Data = Facts and figures collected, measured, summarized, and analyzed for presentation and interpretation.
B21: Field Name= name at top of field that describes what data goes into field | I21: Table = field names in first row, records in subsequent rows
B22: Record = one row in table | I22: Elements = unique list of entities on which variable data are collected
I23: Each company name is an element in this element field
B24: Table requirements in Excel:
B25: 1) Field names in first row | J25: Variable = a characteristic or attribute of interest for the element
B26: 2) Records of related data in subsequent rows | L26: ="There are "&COLUMNS(J29:N29)&" variable fields in this table" -> There are 5 variable fields in this table
B27: 3) Empty cells or Excel Row/Column Headers, all the way around table
A29: Date | B29: Close Price | C29: Volume | D29: Company | G29: Fields | I29: Company | J29: Ticker | K29: Year Incorporated | L29: Industry | M29: No. Employees | N29: P/E Ratio ($)
A30: 44494 | B30: 2775.46 | C30: 1054085 | D30: Google | G30: Records | I30: Google | J30: GOOG | K30: 2015 | L30: Software | M30: 150028 | N30: 28.12
A31: 44495 | B31: 2793.44 | C31: 1412937 | D31: Google | I31: Amazon | J31: AMZN | K31: 1996 | L31: Retail | M31: 1335000 | N31: 58.72
A32: 44496 | B32: 2928.55 | C32: 2592546 | D32: Google | I32: Microsoft | J32: MSFT | K32: 1993 | L32: Software | M32: 181000 | N32: 36.84
A33: 44497 | B33: 2922.58 | C33: 1620903 | D33: Google | F33: . | I33: Ford | J33: F | K33: 1919 | L33: Auto | M33: 186000 | N33: 20.09
A34: 44498 | B34: 2965.41 | C34: 1447725 | D34: Google | F34: . | I34: Caterpillar | J34: CAT | K34: 1986 | L34: Machinery | M34: 97300 | N34: 21.82
A35: 44494 | B35: 3320.37 | C35: 2225956 | D35: Amazon | F35: .
A36: 44495 | B36: 3376.07 | C36: 2698342 | D36: Amazon | I36: ="There are "&COLUMNS(I29:N29)&" fields in the above table: 1 element field and "&COLUMNS(J29:N29)&" variable fields" -> There are 6 fields in the above table: 1 element field and 5 variable fields
A37: 44496 | B37: 3392.49 | C37: 2702224 | D37: Amazon | I37: ="For each record there are "&COLUMNS(I30:N30)&" cells: 1 element cell and "&COLUMNS(J29:N29)&" variable cells" -> For each record there are 6 cells: 1 element cell and 5 variable cells
A38: 44497 | B38: 3446.57 | C38: 5708733 | D38: Amazon
A39: 44498 | B39: 3372.43 | C39: 6486077 | D39: Amazon | I39: Observation = variable data for one element
A40: 44494 | B40: 308.13 | C40: 17554469 | D40: Microsoft | I40: ="Observation for the element "&I30&" =" -> Observation for the element Google = | L40: =J30:N30 -> GOOG | M40: 2015 | N40: Software | O40: 150028 | P40: 28.12
A41: 44495 | B41: 310.11 | C41: 28107349 | D41: Microsoft
A42: 44496 | B42: 323.17 | C42: 52588690 | D42: Microsoft | I42: Measurements are made for each variable to provide data in the observation.
A43: 44497 | B43: 324.35 | C43: 26297943 | D43: Microsoft
A44: 44498 | B44: 331.62 | C44: 34765982 | D44: Microsoft | I44: Measurements made on past 5 days of raw data:
A45: 44494 | B45: 16 | C45: 67808039 | D45: Ford
A46: 44495 | B46: 15.94 | C46: 64882295 | D46: Ford | I46: Company | J46: Mean Price | K46: σ Price | L46: Sum Volume
A47: 44496 | B47: 15.51 | C47: 96094256 | D47: Ford | I47: Google | J47: 2877.088 | K47: 77.25784553 | L47: 8128196
A48: 44497 | B48: 16.86 | C48: 215237578 | D48: Ford | G48: ="Raw Data ==>> Measurements for the "&ROWS(I30:I34)&" elements" -> Raw Data ==>> Measurements for the 5 elements | I48: Amazon | J48: 3381.586 | K48: 40.50549276 | L48: 19821332
A49: 44498 | B49: 17.08 | C49: 100560723 | D49: Ford | I49: Microsoft | J49: 319.476 | K49: 8.959150853 | L49: 159314433
A50: 44494 | B50: 202.21 | C50: 3294689 | D50: Caterpillar | I50: Ford | J50: 16.278 | K50: 0.5938484655 | L50: 544582891
A51: 44495 | B51: 199.64 | C51: 2933573 | D51: Caterpillar | I51: Caterpillar | J51: 201.216 | K51: 3.013487017 | L51: 18389846
A52: 44496 | B52: 196.13 | C52: 3406655 | D52: Caterpillar
A53: 44497 | B53: 204.09 | C53: 4462713 | D53: Caterpillar
A54: 44498 | B54: 204.01 | C54: 4292216 | D54: Caterpillar | I54: Different classifications of data in statistics:
I56: Categorical data = data grouped by a category (also known as Qualitative data)
I57: Nominal = data with no rank or order. Like eye color: Brown, Hazel, Brown; or Phone name: iPhone, Samsung, iPhone. With this data you can count and then calculate the % of total based on the counts. If you use a number as a category label, you cannot do arithmetic (+, -, *. /, ^) on it - you can only count.
I58: Ordinal = data with rank but you don't know distance between each rank, Like: Bad, Good, Great; or *, **, ***, ****; or 1st, 2nd, 3rd. You usually count how many are in each category and then calculate the % of total. In some cases when a number is used to represent the category, you can calculate an average (mean).
I59: Quantitative data = numeric data
I60: Interval = data with rank and a fixed distance between each rank, but where zero is either not in the scale (like IQ or SAT scores) or zero is just a point on the scale (Like Fahrenheit temperature or Celsius temperature). Calculations like counting, % of count total, differences, averages and differences are OK, but ratios between two numbers is not OK.
I61: Ratio = data with rank and a fixed distance between each rank and zero means nothing exists. Like money, weight, height, time, Kelvin temperature. All are scales where zero means nothing exists. Calculations like counting, % of count total, differences and ratios are OK.
I62: Types of numbers:
I63: Discrete numbers are counting numbers & have gaps between each successive number, like 1, 2, 3…, or 1.2, 1.3, 1.4…. Answers the question How Many?
I64: Continuous numbers can occupy any value over a continuous range and depend on the measuring instrument. Like: time, weight, temperature, money ($ don't seem continuous, but many statisticians treat it as such). Answers the question How Much?

Sheet Data Terms
C2: Categorical data = data grouped by a category | H2: Quantitative data = numeric data
C3: Nominal: | E3: Ordinal: | H3: Interval: | J3: Ratio:
C4: Category | E4: Category | H4: Rank | J4: Rank
C5: No Rank | E5: Rank | H5: Know distance between each rank | J5: Know distance between each rank
C6: Calcs: | E6: Don't know distance | H6: Zero is either: | J6: Scales where zero = nothing exists
C7: Count | E7: between each rank | H7: Not in the scale (like IQ scores) | J7: Ratio Okay
C8: % of total based on the counts | E8: Calcs: | H8: Just point on the scale (like Celsius) | J8: Calcs:
E9: Count | H9: Calcs: | J9: Count
E10: % of total based on the counts | H10: Count | J10: % of total based on the counts
E11: Average (Mean) OK for number category | H11: % of total based on the counts | J11: Averages
H12: Averages | J12: Differences
H13: Differences | J13: Ratio OK
H14: Ratio Not Okay
B15: Student | C15: Phone | D15: Eye Color | E15: Rank In Class (1st to 4th) | F15: Rating of Teacher (Bad, Good, Great) | G15: Rating of Teacher (1,2,3) | H15: Temperature Fahrenheit | I15: SAT Score (400 to 1200) | J15: Score On Final (0 - 100) | K15: Temperature Kelvin | L15: Money In Bank
B16: Chantel | C16: iPhone | D16: Brown | E16: 1st | F16: Good | G16: 2 | H16: -10 | I16: 1170 | J16: 81 | K16: =CONVERT(H16,"F","K") -> 249.8166667 | L16: =L17*2 -> 12000
B17: Michael | C17: Samsung | D17: Brown | E17: 4th | F17: Great | G17: 3 | H17: 0 | I17: =I18/2 -> 590 | J17: 90 | K17: =CONVERT(H17,"F","K") -> 255.3722222 | L17: 6000
B18: Mo | C18: iPhone | D18: Brown | E18: 3th | F18: Bad | G18: 1 | H18: 20 | I18: 1180 | J18: 45 | K18: 266.4833333 | L18: 4369
B19: Sioux | C19: iPhone | D19: Hazel | E19: 2nd | F19: Good | G19: 2 | H19: 10 | I19: 1099 | J19: 84 | K19: 260.9277778 | L19: 3131
H22: Types of numbers:
H23: Discrete numbers are counting numbers & have gaps between each successive number, like 1, 2, 3…, or 1.2, 1.3, 1.4…. Answers the question How Many?
H24: Continuous numbers can occupy any value over a continuous range and depend on the measuring instrument. Like: time, weight, temperature, money ($ don't seem continuous, but many statisticians treat it as such). Answers the question How Much?
H26: Cross-sectional data = Data collected at the same or nearly the same point in time
H27: This cross-sectional data was collected on 11/5/2021:
H28: Useful to compare elements such as company.
H30: ='Data & Table'!I29 -> Company | I30: ='Data & Table'!J29 -> Ticker | J30: ='Data & Table'!K29 -> Year Incorporated | K30: ='Data & Table'!L29 -> Industry | L30: ='Data & Table'!M29 -> No. Employees | M30: ='Data & Table'!N29 -> P/E Ratio ($)
H31: ='Data & Table'!I30 -> Google | I31: ='Data & Table'!J30 -> GOOG | J31: ='Data & Table'!K30 -> 2015 | K31: ='Data & Table'!L30 -> Software | L31: ='Data & Table'!M30 -> 150028 | M31: ='Data & Table'!N30 -> 28.12
H32: ='Data & Table'!I31 -> Amazon | I32: ='Data & Table'!J31 -> AMZN | J32: ='Data & Table'!K31 -> 1996 | K32: ='Data & Table'!L31 -> Retail | L32: ='Data & Table'!M31 -> 1335000 | M32: ='Data & Table'!N31 -> 58.72
H33: ='Data & Table'!I32 -> Microsoft | I33: ='Data & Table'!J32 -> MSFT | J33: ='Data & Table'!K32 -> 1993 | K33: ='Data & Table'!L32 -> Software | L33: ='Data & Table'!M32 -> 181000 | M33: ='Data & Table'!N32 -> 36.84
H34: ='Data & Table'!I33 -> Ford | I34: ='Data & Table'!J33 -> F | J34: ='Data & Table'!K33 -> 1919 | K34: ='Data & Table'!L33 -> Auto | L34: ='Data & Table'!M33 -> 186000 | M34: ='Data & Table'!N33 -> 20.09
H35: ='Data & Table'!I34 -> Caterpillar | I35: ='Data & Table'!J34 -> CAT | J35: ='Data & Table'!K34 -> 1986 | K35: ='Data & Table'!L34 -> Machinery | L35: ='Data & Table'!M34 -> 97300 | M35: ='Data & Table'!N34 -> 21.82
H37: Time-series data = Data collected over time
H38: This data was collected for Amazon over a 5-day period
H39: Useful for seeing trends in the past that may help us to estimate what trends there may be in the near future
I41: =H32&" "&'Data & Table'!B29&", "&TEXT(MIN('Data & Table'!A30:A66),"m/d/y")&" to "&TEXT(MAX('Data & Table'!A30:A66),"m/d/y") -> Amazon Close Price, 10/25/21 to 10/29/21
I43: ='Data & Table'!A29:B29 -> Date | J43: Close Price
I44: =_xlfn._xlws.FILTER('Data & Table'!A30:B66,'Data & Table'!D30:D66=H32) -> 44494 | J44: 3320.37
I45: 44495 | J45: 3376.07
I46: 44496 | J46: 3392.49
I47: 44497 | J47: 3446.57
I48: 44498 | J48: 3372.43
H52: Different classifications of data in statistics:
H54: Categorical data = data grouped by a category (also known as Qualitative data)
H55: Nominal = data with no rank or order. Like eye color: Brown, Hazel, Brown; or Phone name: iPhone, Samsung, iPhone. With this data you can count and then calculate the % of total based on the counts. If you use a number as a category label, you cannot do arithmetic (+, -, *. /, ^) on it - you can only count.
H56: Ordinal = data with rank but you don't know distance between each rank, Like: Bad, Good, Great; or *, **, ***, ****; or 1st, 2nd, 3rd. You usually count how many are in each category and then calculate the % of total. In some cases when a number is used to represent the category, you can calculate an average (mean).
H57: Quantitative data = numeric data
H58: Interval = data with rank and a fixed distance between each rank, but where zero is either not in the scale (like IQ or SAT scores) or zero is just a point on the scale (Like Fahrenheit temperature or Celsius temperature). Calculations like counting, % of count total, differences, averages and differences are OK, but ratios between two numbers is not OK.
H59: Ratio = data with rank and a fixed distance between each rank and zero means nothing exists. Like money, weight, height, time, Kelvin temperature. All are scales where zero means nothing exists. Calculations like counting, % of count total, differences and ratios are OK.
H60: Types of numbers:
H61: Discrete numbers are counting numbers & have gaps between each successive number, like 1, 2, 3…, or 1.2, 1.3, 1.4…. Answers the question How Many?
H62: Continuous numbers can occupy any value over a continuous range and depend on the measuring instrument. Like: time, weight, temperature, money ($ don't seem continuous, but many statisticians treat it as such). Answers the question How Much?

Sheet PhoneCount (hidden)
D9: Phones | E9: Count (Frequency) | G9: % of Total (% Frequency)
D10: iPhone | E10: 3 | F10: =E10:E11&"/"&E12&" =" -> 3/4 = | G10: =E10:E11/E12 -> 0.75
D11: Samsung | E11: 1 | F11: 1/4 = | G11: 0.25
D12: Totals | E12: =SUM(E10:E11) -> 4 | G12: =SUM(_xlfn.ANCHORARRAY(G10)) -> 1

Sheet Statistics
B2: Statistics
B3: Numerical facts like:
B4: USA unemployment rate reported Jan. 2021 was 6.3%
B5: Sioux Radcoolinator student ranked at the 90th percentile for the test
B6: 3rd quarter YouTube advertising revenue was $7.20 billion vs. $7.4 billion expected.
B7: Subject of Statistics defined:
B8: Statistics is the art and science of collecting, analyzing, presenting and interpreting data.
B9: Descriptive Statistics:
B10: Data that is summarized and presented
B11: Tabular: table of information
B12: Graphical: charts, graphs, visualizations
B13: Numerical: like an average (mean), median, mode
B14: Inferential Statistics:
B15: The process of using data obtained from a sample to make estimates and test hypotheses about the characteristics/attribute of a population
B16: Take a sample from the population and draw reasonable conclusions that can help to estimate the unknown future.
B17: Define Terms:
B18: Population: The set of all elements of interest in a particular study
B19: (In many situations it is too costly to get data from all the elements in the population)
B20: Example ==>> Census: Collecting data for a population
B21: Sample: A subset of the population
B22: Example ==>> Sample survey: Collecting data for a sample

Sheet TGN

Sheet Art
B2: Retail Sales | D2: Step 1: Determine Number of Classes using the guide: 2^k > n
B3: 615.83 | D3: COUNT function = No. in Sample = n = | E3: =COUNT(B3:B252) -> 250
B4: 28.31 | D4: k = No. Classes = | E4: 6 | F4: This is a judgment call (the art side of statistics)
B5: 0.33 | D5: 2^k = | E5: =2^E4 -> 64
B6: 76.32 | D6: Step 2: Determine width of Classes
B7: 331.65 | D7: MAX | E7: =MAX(B3:B252) -> 1178.98
B8: 15.96 | D8: MIN | E8: =MIN(B3:B252) -> 0.33
B9: 293.23 | D9: "Range of ages" | E9: =E7-E8 -> 1178.65
B10: 165.56 | D10: Approximate width = | E10: =E9/E4 -> 196.4416667
B11: 897.31 | D11: Width of Class (Increment for each class) | E11: =_xlfn.CEILING.MATH(E10,10) -> 200 | F11: This is a judgment call (the art side of statistics)
B12: 226.24 | D12: "Range for classes" = Width of Class*k = | E12: =E11*E4 -> 1200
B13: 82.08 | D13: Step 3: Determine Lower Limit of First
B14: 35.25 | D14: Lower Limit of First Class (look at MIN then estimate) | E14: 0 | F14: This is a judgment call (the art side of statistics)
B15: 914.33
B16: 25.31
B17: 477.35
B18: 70.23
B19: 366.97
B20: 755.06
B21: 8
B22: 1120.75
B23: 75.88
B24: 485.51
B25: 47.36
B26: 248.99
B27: 13.07
B28: 45.28
B29: 18.5
B30: 37.35
B31: 32.69
B32: 2.76
B33: 341.1
B34: 443.52
B35: 53.06
B36: 51.01
B37: 25.06
B38: 126.75
B39: 319.2
B40: 75.46
B41: 331.5
B42: 7.6
B43: 88.23
B44: 91.06
B45: 85.04
B46: 50.67
B47: 194.27
B48: 42.92
B49: 65.45
B50: 631.81
B51: 97.46
B52: 201.9
B53: 31.44
B54: 23.89
B55: 54.7
B56: 143.61
B57: 32.52
B58: 53.08
B59: 200.14
B60: 61.1
B61: 58.07
B62: 134.35
B63: 76.38
B64: 284.8
B65: 965.64
B66: 42.92
B67: 62.66
B68: 51.3
B69: 33.3
B70: 19.37
B71: 67.18
B72: 895.85
B73: 97.56
B74: 69.74
B75: 317.4
B76: 683.64
B77: 81.77
B78: 75.05
B79: 5.97
B80: 49.85
B81: 53.69
B82: 80.64
B83: 491.28
B84: 58.46
B85: 340.72
B86: 10.44
B87: 158.23
B88: 13.61
B89: 4.26
B90: 89.98
B91: 34.06
B92: 326.01
B93: 376.98
B94: 81.32
B95: 82.55
B96: 59.35
B97: 62.7
B98: 167.96
B99: 276.65
B100: 87.38
B101: 170.86
B102: 42.47
B103: 69.33
B104: 129.1
B105: 113.68
B106: 1049.53
B107: 66.9
B108: 222
B109: 9.09
B110: 310.71
B111: 90.54
B112: 122.03
B113: 84.29
B114: 58.39
B115: 381.78
B116: 3.57
B117: 48.25
B118: 58.16
B119: 51.4
B120: 77.24
B121: 76.88
B122: 890.41
B123: 48.81
B124: 68.67
B125: 22.99
B126: 45.26
B127: 8.56
B128: 61.55
B129: 24.02
B130: 462.88
B131: 46.47
B132: 9.57
B133: 181.79
B134: 86.69
B135: 69.98
B136: 1019.38
B137: 162.53
B138: 78.39
B139: 71.31
B140: 470.63
B141: 82.86
B142: 1016.08
B143: 306.88
B144: 42.3
B145: 36.29
B146: 326.4
B147: 72.98
B148: 481.82
B149: 62.32
B150: 1084.37
B151: 1178.98
B152: 432.62
B153: 49.42
B154: 103.65
B155: 563.47
B156: 13.39
B157: 56.75
B158: 80.01
B159: 257.2
B160: 797.84
B161: 791.74
B162: 349.48
B163: 17.13
B164: 53.31
B165: 522.28
B166: 621.61
B167: 496.28
B168: 84.01
B169: 60.1
B170: 100.44
B171: 457.65
B172: 49.31
B173: 36.45
B174: 42.81
B175: 78.75
B176: 318.42
B177: 52.04
B178: 94.77
B179: 78.06
B180: 421.33
B181: 69.43
B182: 396.87
B183: 320.58
B184: 71.97
B185: 340.69
B186: 170.53
B187: 562.84
B188: 340
B189: 84.7
B190: 5.75
B191: 48.95
B192: 76.88
B193: 96.48
B194: 20.06
B195: 360.05
B196: 78.76
B197: 21.13
B198: 49.2
B199: 88.07
B200: 94.79
B201: 86.26
... 51 more rows

Sheet Example of Inferential Stats
A1: Production: Sampling box weight to see if filling machine is filling accurately (chapter 9)
A2: H0 : Mu = 10 grams
A3: H1 : Mu <> 10 grams
A4: Historical Average = | B4: 10 | C4: grams
A5: Historical Standard Deviation = | B5: 0.5 | C5: grams
A6: Level of Significance = | B6: 0.05
A7: Level of Significance Divided by 2 = | B7: =B6/2 -> 0.025
A8: Sample Mean = AVERAGE = | B8: =AVERAGE(A22:A99) -> 9.891897436 | C8: grams
A9: Sample Standard Deviation = STDEV = | B9: =STDEV(A22:A99) -> 0.2383449203 | C9: grams
A10: Sample size = COUNT = | B10: =COUNT($A$22:$A$99) -> 78
A11: Standard Error | B11: =B5/SQRT(B10) -> 0.05661385171 | C11: grams
A12: z | B12: =(B8-B4)/B11 -> -1.90947199
A13: X | B13: =B12*B11+B4 -> 9.891897436 | C13: =D102 -> P(9.892) | H13: =VLOOKUP(B13,B103:C602,2) -> 0.7788075177
A14: p-value = | B14: =IF(B8<B4,2*NORMDIST(B8,B4,B5/SQRT(B10),1),2*(1-NORMDIST(B8,B4,B5/SQRT(B10),1))) -> 0.05620123166
A15: p-value = | B15: =2*(1-NORMSDIST(ABS(B12))) -> 0.05620123166
A16: =IF(B15>B6,"Because the p-value is greater than our alpha, it is reasonable to assume that the machine is filling accurately"," Because the p-value is less than or equal to our alpha, it is reasonable to assume that the machine is not filling accurately") -> Because the p-value is greater than our alpha, it is reasonable to assume that the machine is filling accurately
A21: Sample data
A22: =RANDBETWEEN(9500,10300)/1000 -> 10.087
A23: 9.514
A24: 9.563
A25: 9.565
A26: 9.753
A27: 10.018
A28: 10.23
A29: 9.753
A30: 10.137
A31: 9.554
A32: 9.706
A33: 9.605
A34: 9.794
A35: 9.925
A36: 10.186
A37: 9.869
A38: 10.258
A39: 9.9
A40: 10.066
A41: 9.834
A42: 9.988
A43: 9.809
A44: 9.746
A45: 9.562
A46: 9.963
A47: 10.012
A48: 10.001
A49: 9.859
A50: 9.797
A51: 10.269
A52: 9.851
A53: 10.078
A54: 10.054
A55: 10.272
A56: 10.036
A57: 9.873
A58: 10.252
A59: 10.151
A60: 9.678
A61: 9.589
A62: 10.068
A63: 9.926
A64: 9.985
A65: 9.697
A66: 9.658
A67: 10.225
A68: 9.536
A69: 9.569
A70: 9.988
A71: 9.982
A72: 9.724
A73: 9.636
A74: 10.286
A75: 10.105
A76: 9.502
A77: 9.54
A78: 10.22
A79: 9.675
A80: 9.517
A81: 9.632
A82: 9.911
A83: 9.709
A84: 10.141
A85: 10.043
A86: =RANDBETWEEN(9500,10300)/1000 -> 10.293
A87: 9.883
A88: 9.521
A89: 9.694
A90: 9.773
A91: 10.04
A92: 10.002
A93: 9.944
A94: 9.897
A95: 10.255
A96: 9.567
A97: 9.871
A98: 10.165
A99: 10.231
A101: Chart Data:
A102: z | B102: X | C102: P(Exactly x) | D102: ="P("&ROUND(B8,3)&")" -> P(9.892) | E102: P(alpha)
A103: =(B103-B$4)/B$11 -> -35.32704347 | B103: 8 | C103: =NORMDIST(B103,B$4,B$5,0) -> 0.0002676604515 | D103: =IF(C103<=B$14/2,C103,0) -> 0.0002676604515 | E103: =IF(C103<=B$6/2,C103,0) -> 0.0002676604515
A104: -35.15040825 | B104: =B103+0.01 -> 8.01 | C104: 0.0002898951208 | D104: 0.0002898951208 | E104: 0.0002898951208
A105: -34.97377303 | B105: =B104+0.01 -> 8.02 | C105: 0.0003138512681 | D105: 0.0003138512681 | E105: 0.0003138512681
A106: -34.79713781 | B106: 8.03 | C106: 0.0003396511989 | D106: 0.0003396511989 | E106: 0.0003396511989
A107: -34.6205026 | B107: 8.04 | C107: 0.000367424996 | D107: 0.000367424996 | E107: 0.000367424996
A108: -34.44386738 | B108: 8.05 | C108: 0.0003973109428 | D108: 0.0003973109428 | E108: 0.0003973109428
A109: -34.26723216 | B109: 8.06 | C109: 0.000429455963 | D109: 0.000429455963 | E109: 0.000429455963
A110: -34.09059694 | B110: 8.07 | C110: 0.0004640160793 | D110: 0.0004640160793 | E110: 0.0004640160793
A111: -33.91396173 | B111: 8.08 | C111: 0.0005011568898 | D111: 0.0005011568898 | E111: 0.0005011568898
A112: -33.73732651 | B112: 8.09 | C112: 0.0005410540629 | D112: 0.0005410540629 | E112: 0.0005410540629
A113: -33.56069129 | B113: 8.1 | C113: 0.0005838938516 | D113: 0.0005838938516 | E113: 0.0005838938516
A114: -33.38405607 | B114: 8.11 | C114: 0.0006298736258 | D114: 0.0006298736258 | E114: 0.0006298736258
A115: -33.20742086 | B115: 8.12 | C115: 0.000679202425 | D115: 0.000679202425 | E115: 0.000679202425
A116: -33.03078564 | B116: 8.13 | C116: 0.0007321015291 | D116: 0.0007321015291 | E116: 0.0007321015291
A117: -32.85415042 | B117: 8.14 | C117: 0.0007888050499 | D117: 0.0007888050499 | E117: 0.0007888050499
A118: -32.67751521 | B118: 8.15 | C118: 0.0008495605411 | D118: 0.0008495605411 | E118: 0.0008495605411
A119: -32.50087999 | B119: 8.16 | C119: 0.0009146296281 | D119: 0.0009146296281 | E119: 0.0009146296281
A120: -32.32424477 | B120: 8.17 | C120: 0.0009842886577 | D120: 0.0009842886577 | E120: 0.0009842886577
A121: -32.14760955 | B121: 8.18 | C121: 0.001058829366 | D121: 0.001058829366 | E121: 0.001058829366
A122: -31.97097434 | B122: 8.19 | C122: 0.001138559568 | D122: 0.001138559568 | E122: 0.001138559568
A123: -31.79433912 | B123: 8.2 | C123: 0.00122380386 | D123: 0.00122380386 | E123: 0.00122380386
A124: -31.6177039 | B124: 8.21 | C124: 0.001314904351 | D124: 0.001314904351 | E124: 0.001314904351
A125: -31.44106868 | B125: 8.22 | C125: 0.001412221401 | D125: 0.001412221401 | E125: 0.001412221401
A126: -31.26443347 | B126: 8.23 | C126: 0.001516134383 | D126: 0.001516134383 | E126: 0.001516134383
A127: -31.08779825 | B127: 8.24 | C127: 0.001627042462 | D127: 0.001627042462 | E127: 0.001627042462
A128: -30.91116303 | B128: 8.25 | C128: 0.00174536539 | D128: 0.00174536539 | E128: 0.00174536539
A129: -30.73452781 | B129: 8.26 | C129: 0.001871544314 | D129: 0.001871544314 | E129: 0.001871544314
A130: -30.5578926 | B130: 8.27 | C130: 0.002006042601 | D130: 0.002006042601 | E130: 0.002006042601
A131: -30.38125738 | B131: 8.28 | C131: 0.00214934668 | D131: 0.00214934668 | E131: 0.00214934668
A132: -30.20462216 | B132: 8.29 | C132: 0.002301966888 | D132: 0.002301966888 | E132: 0.002301966888
A133: -30.02798695 | B133: 8.3 | C133: 0.002464438337 | D133: 0.002464438337 | E133: 0.002464438337
A134: -29.85135173 | B134: 8.31 | C134: 0.002637321784 | D134: 0.002637321784 | E134: 0.002637321784
A135: -29.67471651 | B135: 8.32 | C135: 0.002821204514 | D135: 0.002821204514 | E135: 0.002821204514
A136: -29.49808129 | B136: 8.33 | C136: 0.00301670123 | D136: 0.00301670123 | E136: 0.00301670123
A137: -29.32144608 | B137: 8.34 | C137: 0.003224454944 | D137: 0.003224454944 | E137: 0.003224454944
A138: -29.14481086 | B138: 8.35 | C138: 0.003445137878 | D138: 0.003445137878 | E138: 0.003445137878
A139: -28.96817564 | B139: 8.36 | C139: 0.003679452362 | D139: 0.003679452362 | E139: 0.003679452362
A140: -28.79154042 | B140: 8.37 | C140: 0.003928131731 | D140: 0.003928131731 | E140: 0.003928131731
A141: -28.61490521 | B141: 8.38 | C141: 0.004191941226 | D141: 0.004191941226 | E141: 0.004191941226
A142: -28.43826999 | B142: 8.39 | C142: 0.004471678879 | D142: 0.004471678879 | E142: 0.004471678879
A143: -28.26163477 | B143: 8.4 | C143: 0.004768176403 | D143: 0.004768176403 | E143: 0.004768176403
A144: -28.08499955 | B144: 8.41 | C144: 0.005082300057 | D144: 0.005082300057 | E144: 0.005082300057
A145: -27.90836434 | B145: 8.42 | C145: 0.005414951514 | D145: 0.005414951514 | E145: 0.005414951514
A146: -27.73172912 | B146: 8.43 | C146: 0.005767068695 | D146: 0.005767068695 | E146: 0.005767068695
A147: -27.5550939 | B147: 8.44 | C147: 0.006139626602 | D147: 0.006139626602 | E147: 0.006139626602
A148: -27.37845869 | B148: 8.45 | C148: 0.006533638112 | D148: 0.006533638112 | E148: 0.006533638112
A149: -27.20182347 | B149: 8.46 | C149: 0.006950154756 | D149: 0.006950154756 | E149: 0.006950154756
A150: -27.02518825 | B150: 8.47 | C150: 0.007390267459 | D150: 0.007390267459 | E150: 0.007390267459
A151: -26.84855303 | B151: 8.48 | C151: 0.007855107258 | D151: 0.007855107258 | E151: 0.007855107258
A152: -26.67191782 | B152: 8.49 | C152: 0.008345845969 | D152: 0.008345845969 | E152: 0.008345845969
A153: -26.4952826 | B153: 8.5 | C153: 0.008863696824 | D153: 0.008863696824 | E153: 0.008863696824
A154: -26.31864738 | B154: 8.51 | C154: 0.009409915054 | D154: 0.009409915054 | E154: 0.009409915054
A155: -26.14201216 | B155: 8.52 | C155: 0.009985798427 | D155: 0.009985798427 | E155: 0.009985798427
A156: -25.96537695 | B156: 8.53 | C156: 0.01059268773 | D156: 0.01059268773 | E156: 0.01059268773
A157: -25.78874173 | B157: 8.54 | C157: 0.01123196719 | D157: 0.01123196719 | E157: 0.01123196719
A158: -25.61210651 | B158: 8.55 | C158: 0.01190506484 | D158: 0.01190506484 | E158: 0.01190506484
A159: -25.4354713 | B159: 8.56 | C159: 0.01261345279 | D159: 0.01261345279 | E159: 0.01261345279
A160: -25.25883608 | B160: 8.57 | C160: 0.01335864748 | D160: 0.01335864748 | E160: 0.01335864748
A161: -25.08220086 | B161: 8.58 | C161: 0.01414220977 | D161: 0.01414220977 | E161: 0.01414220977
A162: -24.90556564 | B162: 8.59 | C162: 0.01496574505 | D162: 0.01496574505 | E162: 0.01496574505
A163: -24.72893043 | B163: 8.6 | C163: 0.01583090317 | D163: 0.01583090317 | E163: 0.01583090317
A164: -24.55229521 | B164: 8.61 | C164: 0.01673937831 | D164: 0.01673937831 | E164: 0.01673937831
A165: -24.37565999 | B165: 8.62 | C165: 0.0176929088 | D165: 0.0176929088 | E165: 0.0176929088
A166: -24.19902477 | B166: 8.63 | C166: 0.01869327674 | D166: 0.01869327674 | E166: 0.01869327674
A167: =(B167-B$4)/B$11 -> -24.02238956 | B167: 8.64 | C167: =NORMDIST(B167,B$4,B$5,0) -> 0.01974230759 | D167: =IF(C167<=B$14/2,C167,0) -> 0.01974230759 | E167: =IF(C167<=B$6/2,C167,0) -> 0.01974230759
A168: -23.84575434 | B168: 8.65 | C168: 0.02084186963 | D168: 0.02084186963 | E168: 0.02084186963
A169: -23.66911912 | B169: =B168+0.01 -> 8.66 | C169: 0.02199387326 | D169: 0.02199387326 | E169: 0.02199387326
A170: -23.4924839 | B170: 8.67 | C170: 0.02320027023 | D170: 0.02320027023 | E170: 0.02320027023
A171: -23.31584869 | B171: 8.68 | C171: 0.0244630527 | D171: 0.0244630527 | E171: 0.0244630527
A172: -23.13921347 | B172: 8.69 | C172: 0.02578425222 | D172: 0.02578425222 | E172: 0
A173: -22.96257825 | B173: 8.7 | C173: 0.02716593847 | D173: 0.02716593847 | E173: 0
A174: -22.78594304 | B174: 8.71 | C174: 0.02861021799 | D174: 0 | E174: 0
A175: -22.60930782 | B175: 8.72 | C175: 0.03011923265 | D175: 0 | E175: 0
A176: -22.4326726 | B176: 8.73 | C176: 0.03169515805 | D176: 0 | E176: 0
A177: -22.25603738 | B177: 8.74 | C177: 0.03334020167 | D177: 0 | E177: 0
A178: -22.07940217 | B178: 8.75 | C178: 0.03505660099 | D178: 0 | E178: 0
A179: -21.90276695 | B179: 8.76 | C179: 0.03684662129 | D179: 0 | E179: 0
A180: -21.72613173 | B180: 8.77 | C180: 0.03871255346 | D180: 0 | E180: 0
A181: -21.54949651 | B181: 8.78 | C181: 0.04065671148 | D181: 0 | E181: 0
A182: -21.3728613 | B182: 8.79 | C182: 0.0426814298 | D182: 0 | E182: 0
A183: -21.19622608 | B183: 8.8 | C183: 0.04478906059 | D183: 0 | E183: 0
A184: -21.01959086 | B184: 8.81 | C184: 0.04698197072 | D184: 0 | E184: 0
A185: -20.84295564 | B185: 8.82 | C185: 0.04926253861 | D185: 0 | E185: 0
A186: -20.66632043 | B186: 8.83 | C186: 0.05163315094 | D186: 0 | E186: 0
A187: -20.48968521 | B187: 8.84 | C187: 0.05409619909 | D187: 0 | E187: 0
A188: -20.31304999 | B188: 8.85 | C188: 0.05665407548 | D188: 0 | E188: 0
A189: -20.13641478 | B189: 8.86 | C189: 0.05930916969 | D189: 0 | E189: 0
A190: -19.95977956 | B190: 8.87 | C190: 0.06206386443 | D190: 0 | E190: 0
A191: -19.78314434 | B191: 8.88 | C191: 0.06492053129 | D191: 0 | E191: 0
A192: -19.60650912 | B192: 8.89 | C192: 0.06788152636 | D192: 0 | E192: 0
A193: -19.42987391 | B193: 8.9 | C193: 0.07094918569 | D193: 0 | E193: 0
A194: -19.25323869 | B194: 8.91 | C194: 0.0741258205 | D194: 0 | E194: 0
A195: -19.07660347 | B195: 8.92 | C195: 0.07741371229 | D195: 0 | E195: 0
A196: -18.89996825 | B196: 8.93 | C196: 0.08081510785 | D196: 0 | E196: 0
A197: -18.72333304 | B197: 8.94 | C197: 0.08433221392 | D197: 0 | E197: 0
A198: -18.54669782 | B198: 8.95 | C198: 0.08796719196 | D198: 0 | E198: 0
A199: -18.3700626 | B199: 8.96 | C199: 0.09172215254 | D199: 0 | E199: 0
A200: -18.19342738 | B200: 8.97 | C200: 0.09559914976 | D200: 0 | E200: 0
A201: -18.01679217 | B201: 8.98 | C201: 0.09960017547 | D201: 0 | E201: 0
A202: -17.84015695 | B202: 8.99 | C202: 0.1037271534 | D202: 0 | E202: 0
A203: -17.66352173 | B203: 9 | C203: 0.107981933 | D203: 0 | E203: 0
A204: -17.48688652 | B204: 9.01 | C204: 0.1123662838 | D204: 0 | E204: 0
A205: -17.3102513 | B205: 9.02 | C205: 0.1168818887 | D205: 0 | E205: 0
... 397 more rows

Sheet What Excel Does
B2: 1) Hold data | D2: 2) Make calculations
B4: Revenue | D4: Average Sale | E4: =AVERAGE(B5:B204) -> 75.05775
B5: 45.9
B6: 19.95
B7: 21.95 | D7: 3) Perform data analysis (analytics) = Converting data into useful information to gain insight and make decisions
B8: 19.95
B9: 79.8 | D9: Tabular = table of information = report | H9: Graphical = visualize, like with a chart
B10: 79.8
B11: 59.85 | D11: Revenue ($) Upper Limit not Included) | E11: Frequency | F11: Cumulative Frequency
B12: 139.65 | D12: 0-25 | E12: 53 | F12: 0.265
B13: 119.7 | D13: 25-50 | E13: 44 | F13: 0.485
B14: 43.9 | D14: 50-75 | E14: 22 | F14: 0.595
B15: 43.9 | D15: 75-100 | E15: 24 | F15: 0.715
B16: 99.75 | D16: 100-125 | E16: 30 | F16: 0.865
B17: 114.75 | D17: 125-150 | E17: 7 | F17: 0.9
B18: 91.8 | D18: 150-175 | E18: 9 | F18: 0.945
B19: 114.75 | D19: 175-200 | E19: 4 | F19: 0.965
B20: 22.95 | D20: 200-225 | E20: 2 | F20: 0.975
B21: 124.75 | D21: 225-250 | E21: 4 | F21: 0.995
B22: 19.95 | D22: 275-300 | E22: 1 | F22: 1
B23: 87.8 | D23: Grand Total | E23: 200
B24: 22.95
B25: 299.5
B26: 19.95
B27: 99.75 | D27: Table | H27: Chart
B28: 39.9
B29: 65.85
B30: 24.95
B31: 21.95
B32: 19.95
B33: 91.8
B34: 65.85
B35: 39.9
B36: 43.9
B37: 65.85
B38: 43.9
B39: 99.75
B40: 29.95
B41: 65.85
B42: 22.95
B43: 19.95
B44: 99.75
B45: 124.75
B46: 21.95
B47: 174.65
B48: 29.95
B49: 149.75
B50: 29.95
B51: 45.9
B52: 160.65
B53: 160.65
B54: 119.7
B55: 43.9
B56: 119.7
B57: 65.85
B58: 22.95
B59: 65.85
B60: 109.75
B61: 114.75
B62: 249.5
B63: 109.75
B64: 114.75
B65: 114.75
B66: 119.8
B67: 29.95
B68: 114.75
B69: 209.65
B70: 114.75
B71: 59.85
B72: 124.75
B73: 39.9
B74: 124.75
B75: 24.95
B76: 22.95
B77: 249.5
B78: 59.85
B79: 43.9
B80: 19.95
B81: 29.95
B82: 19.95
B83: 65.85
B84: 22.95
B85: 79.8
B86: 79.8
B87: 114.75
B88: 22.95
B89: 19.95
B90: 109.75
B91: 59.9
B92: 43.9
B93: 39.9
B94: 209.65
B95: 19.95
B96: 79.8
B97: 124.75
B98: 24.95
B99: 160.65
B100: 65.85
B101: 137.7
B102: 29.95
B103: 119.7
B104: 19.95
B105: 39.9
B106: 114.75
B107: 21.95
B108: 179.7
B109: 39.9
B110: 24.95
B111: 99.8
B112: 87.8
B113: 39.9
B114: 65.85
B115: 199.5
B116: 21.95
B117: 124.75
B118: 29.95
B119: 21.95
B120: 119.8
B121: 89.85
B122: 65.85
B123: 91.8
B124: 149.7
B125: 59.85
B126: 131.7
B127: 49.9
B128: 43.9
B129: 19.95
B130: 21.95
B131: 24.95
B132: 39.9
B133: 24.95
B134: 114.75
B135: 119.7
B136: 43.9
B137: 24.95
B138: 174.65
B139: 24.95
B140: 49.9
B141: 19.95
B142: 39.9
B143: 45.9
B144: 179.7
B145: 160.65
B146: 21.95
B147: 124.75
B148: 89.85
B149: 49.9
B150: 22.95
B151: 19.95
B152: 99.75
B153: 91.8
B154: 49.9
B155: 21.95
B156: 45.9
B157: 22.95
B158: 45.9
B159: 24.95
B160: 39.9
B161: 179.7
B162: 21.95
B163: 24.95
B164: 74.85
B165: 79.8
B166: 19.95
B167: 22.95
B168: 45.9
B169: 65.85
B170: 139.65
B171: 22.95
B172: 39.9
B173: 109.75
B174: 160.65
B175: 49.9
B176: 22.95
B177: 45.9
B178: 68.85
B179: 229.5
B180: 29.95
B181: 39.9
B182: 43.9
B183: 19.95
B184: 59.9
B185: 99.75
B186: 174.65
B187: 65.85
B188: 124.75
B189: 87.8
B190: 229.5
B191: 99.75
B192: 19.95
B193: 19.95
B194: 99.8
B195: 24.95
B196: 114.75
B197: 59.85
B198: 43.9
B199: 74.85
B200: 19.95
B201: 22.95
B202: 153.65
... 2 more rows

Sheet Structure
A1: Excel Layout:
A2: Column Headers
A3: Row Headers
A4: Cells = Intersection of Column and Row
A5: Horizontal & Vertical Scroll Bars & Buttons = Expose more rows or columns of cells
A6: Worksheets = Sheet = All The Cells
A7: Sheet Tab Names = Name of Sheet
A8: Active Sheet is the Worksheet that is Selected
A9: Double-click Sheet Tab to remine
A10: Right-click Sheet Tab, Tab Color to add color to Sheet Tab
A11: Workbooks = All Sheets
A12: File = Workbook
A13: Ribbon Tabs (keyboard to show or hide Ribbon: Ctrl + F1 (toggle))
A14: Quick Access Toolbar = QAT
A15: Right-click features in Ribbon Tabs, Add To QAT
A21: Navigate to new Worksheets:
A22: 1) Click Sheet Tab = Activates a Worksheet
A23: 2) Worksheet Scroll Arrow exposes more Worksheets without moving Active Worksheet
A24: 3) … icons selects next hidden worksheet to make it the Active Worksheet
A25: 4) Activate dialog box (right-click Worksheet Scroll Arrows)
A26: 5) Keyboard to Move Active Sheet = Ctrl + PageDown (Right) or PageUp (Left)

Sheet Conventions
B2: Sheet Tab Fill Colors:
B3: Yellow = Information
B4: Blue = You work on this sheet
B5: Red = Answer as I completed it while filming video
B8: Data Set and Formula Fill Colors: | F8: Sales | G8: Tax Amount ($) | I8: Tax Rate
B9: Dark blue = field names (column headers) | F9: 326.82 | G9: =ROUND(F9:F13*I9,2) -> 24.35 | I9: 0.0745
B10: Dark blue = Answer cell label | F10: 446.39 | G10: 33.26
B11: Red = formula input | F11: 474.74 | G11: 35.37
F12: 233.21 | G12: 17.37
F13: 488.01 | G13: 36.36
E14: Total | F14: =SUM(F9:F13) -> 1969.17 | G14: =SUM(_xlfn.ANCHORARRAY(G9)) -> 146.71

Sheet Data & Alignmnet
A1: Data Types in Excel | B1: Default Alignment | C1: Example1 | D1: Example2
A2: Text | B2: Left
A3: Numbers | B3: Right
A4: Logical/Boolean (TRUE or FALSE) | B4: Center and All CAPS
A5: Errors | B5: Center
A6: Empty Cells | E6: <<== Not really a Data Type, but it is a "thing" in Excel that can sometimes cause problems.
E7: **Refer to Empty Cells as "Empty Cells", not blanks.
A8: Why is Default Alignment important:
A9: Answer: It helps to track down errors.
A10: Example 1: We download these numbers from company web site: | E10: Example 2: We download these numbers from company database:
B12: Sales | F12: Sales
B13: 326.82 | C13: <<== Excel sees these as Numbers | F13: 326.82 | G13: <<== Excel sees these as Text
B14: 446.39 | F14: 446.39
B15: 474.74 | F15: 474.74
B16: 233.21 | F16: 233.21
B17: 488.01 | F17: 488.01
A18: Total | E18: Total
F20: *The immediate visual cue is that the numbers are NOT aligned right
A23: Important Rule for entering data: 1) Don't use Alignment. Always keep Default Alignment.
A25: Common mistake made in the working world:
A27: Date | B27: Units Purchased | C27: Cost | D27: Units Sold | E27: Price | F27: Running Balance
A28: Balance Forward: | F28: 159
A29: 2015-01-05 | D29: 48 | E29: 25.5 | F29: =IF(A29,F28+B29-D29,"") -> 111
A30: 2015-01-06 | B30: 144 | C30: 11.55 | F30: =IF(A30,F29+B30-D30,"") -> 255
A31: 2015-01-07 | D31: 190 | E31: 24.35 | F31: 65
D32: 24 | E32: 27
B33: 192
B37: SUM:
B38: =SUM(B29:B35) -> 192

Sheet Data & Alignmnet (an)
A1: Data Types in Excel | B1: Default Alignment | C1: Example1 | D1: Example2
A2: Text | B2: Left | C2: Excel
A3: Numbers | B3: Right | C3: 43
A4: Logical/Boolean (TRUE or FALSE) | B4: Center and All CAPS | C4: TRUE | D4: FALSE
A5: Errors | B5: Center | C5: =C3/0 ->  | D5: =C3+C2 -> 
A6: Empty Cells | E6: <<== Not really a Data Type, but it is a "thing" in Excel that can sometimes cause problems.
E7: **Refer to Empty Cells as "Empty Cells", not blanks.
A8: Why is Default Alignment important:
A9: Answer: It helps to track down errors.
A10: Example 1: We download these numbers from company web site: | E10: Example 2: We download these numbers from company database:
B12: Sales | F12: Sales
B13: 326.82 | C13: <<== Excel sees these as Numbers | F13: 326.82 | G13: <<== Excel sees these as Text
B14: 446.39 | F14: 446.39
B15: 474.74 | F15: 474.74
B16: 233.21 | F16: 233.21
B17: 488.01 | F17: 488.01
A18: Total | B18: =SUM(B13:B17) -> 1969.17 | E18: Total | F18: =SUM(F13:F17) -> 0
F20: *The immediate visual cue is that the numbers are NOT aligned right
A23: Important Rule for entering data: 1) Don't use Alignment. Always keep Default Alignment.
A25: Common mistake made in the working world:
A27: Date | B27: Units Purchased | C27: Cost | D27: Units Sold | E27: Price | F27: Running Balance
A28: Balance Forward: | F28: 159
A29: 2015-01-05 | D29: 48 | E29: 25.5 | F29: =IF(A29,F28+B29-D29,"") -> 111
A30: 2015-01-06 | B30: 144 | C30: 11.55 | F30: =IF(A30,F29+B30-D30,"") -> 255
A31: 2015-01-07 | D31: 190 | E31: 24.35 | F31: 65
A32: 2015-01-08 | D32: 24 | E32: 27 | F32: 41
B33: 192 | C33: 11.34
B37: SUM:
B38: =SUM(B29:B35) -> 192

Sheet Keyboards
B35: Revenue ($) | D35: Total | F35: Keyboards are fast:
B36: 1145.19 | F36: Jump to end of current region => Ctrl + Arrow
B37: 19.95 | F37: Highlight to end of current region => Ctrl + Shift + Arrow
B38: 21.95 | F38: Sum Function => Alt + =
B39: 1219.95 | F39: Open Format Cells dialog box if cell or range is selected => Ctrl + 1
B40: 79.8 | F40: Open Chart Format Task Pane if chart is selected => Ctrl + 1
B41: 79.8 | F41: Many, many more that we will learn in class …
B42: 59.85
B43: 139.65 | F43: Entering Data & Formulas into Cells:
B44: 119.7 | F44: Ctrl + Enter = Puts the content into active cell and keeps active cell selected. Use this when your goal is to put the content into the active cell and immediately do something to the active cell, like copy or format it.
B45: 1743.9 | F45: Enter = Puts the content into active cell and moves the selected cell down by one row. Use this when your goal is to put the content into the active cell and immediately do something in the cell below, like enter more content.
B46: 43.9 | F46: Shift + Enter = Puts the content into active cell and moves the selected cell up by one row. Use this when your goal is to put the content into the active cell and move the selected cell up by one row, like when you need to enter a formula but the worksheet screen does not show the active cell.
B47: 99.75 | F47: Tab = Puts the content into active cell and moves the selected cell to the right by one column. Use this when your goal is to put the content into the active cell and immediately do something in the cell to the right, like enter more content.
B48: 114.75 | F48: Shift + Tab = Puts the content into active cell and moves the selected cell to the right by one column. Use this when your goal is to put the content into the active cell and immediately do something in the cell to the left, like enter more content.
B49: 91.8
B50: 114.75 | F50: Selection keyboards
B51: 22.95 | F51: Ctrl + Shift + Arrow = Selects a range of cell content in the direction of the arrow, stops when it bumps into the first empty cell. Use this when you want to quickly highlight a column or row of cell content. If there is no content when you invoke this keyboard, then this keyboard jumps all the way to the edge of the worksheet.
B52: 124.75 | F52: Ctrl + * (Number Pad) = Ctrl + Shift + 8 (Standard Keys) = Selects the current region, which means everything in all directions from the active cell, up to the first complete row or column of empty cells, or it bumps into the worksheet row numbers or column letters. This is the keyboard shortcut to instantly select a whole table.
B53: 19.95 | F53: Shift + Arrow = Highlights one cell at a time in the direction of the arrow, incrementing slowly on each click of the arrow. The trick is to hold the Shift key and then tap the arrow key, once for each character that you want to select. This is useful when you have a small selection to make within a larger block of cells.
B54: 87.8
B55: 22.95 | F55: Navigation Keys
B56: 299.5 | F56: Ctrl + Home = Jumps the active cell to cell A1. This is convenient when you want to jump to the very top of the worksheet.
B57: 19.95 | F57: Ctrl + End = Jumps the active cell to last cell used in entire worksheet. You can use this to jump to the very bottom of your work area.
B58: 99.75 | F58: Ctrl + Arrow = Jumps the active cell to last cell with content, in the direction of the arrow, stoping when it bumps into the first empty cell. This keyboard is great when you want to jump to the last bit of data in a row or a column.
B59: 39.9 | F59: Ctrl + . (period or Decimal key) = Jumps the active cell to next corner in a selected range. This keyboard only jumps between the four corners of a selected range. It is useful for navigating the four corners of a large table.
B60: 65.85 | F60: Ctrl + Backspace = Jumps the screen back to the active cell. This keyboard works whether or not the active cell is in edit mode or the cell is just selected. It is a great keyboard when the active cell is off screen, but you need to instantly jump back to the active cell.
B61: 24.95
B62: 21.95 | F62: Other Keyboards
B63: 19.95 | F63: F2 = put cell in edit mode.
B64: 91.8 | F64: F4 = Toggles between the different types of cell references in a formula.
B65: 65.85 | F65: F7 = Spell Check.
B66: 39.9 | F66: F9 = Evaluate Formula Element.
B67: 43.9 | F67: Ctrl + C = Copy.
B68: 65.85 | F68: Ctrl + V = Paste.
B69: 43.9 | F69: Ctrl + X = Cut.
B70: 99.75 | F70: Ctrl + Shift + Arrow = Select everything up to the first empty cell.
B71: 29.95 | F71: Alt + = (Equal Sign) = Insert SUM function into cell.
B72: 65.85 | F72: Fx + F12 = Save As when keyboards require the Fx Function Key.
B73: 22.95 | F73: Ctrl + Backspace = Jump Back to Active Cell.
B74: 19.95 | F74: Shift + Enter = Puts the content into active cell and moves the selected cell up by one row.
B75: 99.75 | F75: Alt, N, V, T = Open Create PivotTable dialog box.
B76: 124.75 | F76: Alt, N, V = Open Create PivotTable dialog box if you do not have a Power BI Account or you are not logged in.
B77: 21.95 | F77: Alt, P, S, P = Open Page Setup dialog box.
B78: 174.65 | F78: Alt, A, M = Remove Duplicates.
B79: 29.95 | F79: Alt, A, D, M = Open Data Model.
B80: 149.75 | F80: Right-Click Key, B, V = Convert Excel Table to Range.
B81: 29.95 | F81: Alt, “Position of Item in QAT” = Invoke button from QAT based on position of button in QAT.
B82: 45.9
B83: 160.65
B84: 160.65
B85: 119.7
B86: 43.9
B87: 119.7
B88: 65.85
B89: 22.95
B90: 65.85
B91: 109.75
B92: 114.75
B93: 249.5
B94: 109.75
B95: 114.75
B96: 114.75
B97: 119.8
B98: 29.95
B99: 114.75
B100: 209.65
B101: 114.75
B102: 59.85
B103: 124.75
B104: 39.9
B105: 124.75
B106: 24.95
B107: 22.95
B108: 249.5
B109: 59.85
B110: 43.9
B111: 19.95
B112: 29.95
B113: 19.95
B114: 65.85
B115: 22.95
B116: 79.8
B117: 79.8
B118: 114.75
B119: 22.95
B120: 19.95
B121: 109.75
B122: 59.9
B123: 43.9
B124: 39.9
B125: 209.65
B126: 19.95
B127: 79.8
B128: 124.75
B129: 24.95
B130: 160.65
B131: 65.85
B132: 137.7
B133: 29.95
B134: 119.7
B135: 19.95
B136: 39.9
B137: 114.75
B138: 21.95
B139: 179.7
B140: 39.9
B141: 24.95
B142: 99.8
B143: 87.8
B144: 39.9
B145: 65.85
B146: 199.5
B147: 21.95
B148: 124.75
B149: 29.95
B150: 21.95
B151: 119.8
B152: 89.85
B153: 65.85
B154: 91.8
B155: 149.7
B156: 59.85
B157: 131.7
B158: 49.9
B159: 43.9
B160: 19.95
B161: 21.95
B162: 24.95
B163: 39.9
B164: 24.95
B165: 114.75
B166: 119.7
B167: 43.9
B168: 24.95
B169: 174.65
B170: 24.95
B171: 49.9
B172: 19.95
B173: 39.9
B174: 45.9
B175: 179.7
B176: 160.65
B177: 21.95
B178: 124.75
B179: 89.85
B180: 49.9
B181: 22.95
B182: 19.95
B183: 99.75
B184: 91.8
B185: 49.9
B186: 21.95
B187: 45.9
B188: 22.95
B189: 45.9
B190: 24.95
B191: 39.9
B192: 179.7
B193: 21.95
B194: 24.95
B195: 74.85
B196: 79.8
B197: 19.95
B198: 22.95
B199: 45.9
B200: 65.85
B201: 139.65
B202: 22.95
B203: 39.9
B204: 109.75
B205: 160.65
B206: 49.9
B207: 22.95
B208: 45.9
B209: 68.85
B210: 229.5
B211: 29.95
B212: 39.9
B213: 43.9
B214: 19.95
B215: 59.9
B216: 99.75
B217: 174.65
B218: 65.85
B219: 124.75
B220: 87.8
B221: 229.5
B222: 99.75
B223: 19.95
B224: 19.95
B225: 99.8
B226: 24.95
B227: 114.75
B228: 59.85
B229: 43.9
B230: 74.85
B231: 19.95
B232: 22.95
B233: 153.65
B234: 39.9
... 1 more rows

Sheet Keyboards (an)
B35: Revenue ($) | D35: Total | F35: Keyboards are fast:
B36: 1145.19 | D36: =SUM(B36:B235) -> 19010.84 | F36: Jump to end of current region => Ctrl + Arrow
B37: 19.95 | F37: Highlight to end of current region => Ctrl + Shift + Arrow
B38: 21.95 | F38: Sum Function => Alt + =
B39: 1219.95 | F39: Open Format Cells dialog box if cell or range is selected => Ctrl + 1
B40: 79.8 | F40: Open Chart Format Task Pane if chart is selected => Ctrl + 1
B41: 79.8 | F41: Many, many more that we will learn in class …
B42: 59.85
B43: 139.65 | F43: Entering Data & Formulas into Cells:
B44: 119.7 | F44: Ctrl + Enter = Puts the content into active cell and keeps active cell selected. Use this when your goal is to put the content into the active cell and immediately do something to the active cell, like copy or format it.
B45: 1743.9 | F45: Enter = Puts the content into active cell and moves the selected cell down by one row. Use this when your goal is to put the content into the active cell and immediately do something in the cell below, like enter more content.
B46: 43.9 | F46: Shift + Enter = Puts the content into active cell and moves the selected cell up by one row. Use this when your goal is to put the content into the active cell and move the selected cell up by one row, like when you need to enter a formula but the worksheet screen does not show the active cell.
B47: 99.75 | F47: Tab = Puts the content into active cell and moves the selected cell to the right by one column. Use this when your goal is to put the content into the active cell and immediately do something in the cell to the right, like enter more content.
B48: 114.75 | F48: Shift + Tab = Puts the content into active cell and moves the selected cell to the right by one column. Use this when your goal is to put the content into the active cell and immediately do something in the cell to the left, like enter more content.
B49: 91.8
B50: 114.75 | F50: Selection keyboards
B51: 22.95 | F51: Ctrl + Shift + Arrow = Selects a range of cell content in the direction of the arrow, stops when it bumps into the first empty cell. Use this when you want to quickly highlight a column or row of cell content. If there is no content when you invoke this keyboard, then this keyboard jumps all the way to the edge of the worksheet.
B52: 124.75 | F52: Ctrl + * (Number Pad) = Ctrl + Shift + 8 (Standard Keys) = Selects the current region, which means everything in all directions from the active cell, up to the first complete row or column of empty cells, or it bumps into the worksheet row numbers or column letters. This is the keyboard shortcut to instantly select a whole table.
B53: 19.95 | F53: Shift + Arrow = Highlights one cell at a time in the direction of the arrow, incrementing slowly on each click of the arrow. The trick is to hold the Shift key and then tap the arrow key, once for each character that you want to select. This is useful when you have a small selection to make within a larger block of cells.
B54: 87.8
B55: 22.95 | F55: Navigation Keys
B56: 299.5 | F56: Ctrl + Home = Jumps the active cell to cell A1. This is convenient when you want to jump to the very top of the worksheet.
B57: 19.95 | F57: Ctrl + End = Jumps the active cell to last cell used in entire worksheet. You can use this to jump to the very bottom of your work area.
B58: 99.75 | F58: Ctrl + Arrow = Jumps the active cell to last cell with content, in the direction of the arrow, stoping when it bumps into the first empty cell. This keyboard is great when you want to jump to the last bit of data in a row or a column.
B59: 39.9 | F59: Ctrl + . (period or Decimal key) = Jumps the active cell to next corner in a selected range. This keyboard only jumps between the four corners of a selected range. It is useful for navigating the four corners of a large table.
B60: 65.85 | F60: Ctrl + Backspace = Jumps the screen back to the active cell. This keyboard works whether or not the active cell is in edit mode or the cell is just selected. It is a great keyboard when the active cell is off screen, but you need to instantly jump back to the active cell.
B61: 24.95
B62: 21.95 | F62: Other Keyboards
B63: 19.95 | F63: F2 = put cell in edit mode.
B64: 91.8 | F64: F4 = Toggles between the different types of cell references in a formula.
B65: 65.85 | F65: F7 = Spell Check.
B66: 39.9 | F66: F9 = Evaluate Formula Element.
B67: 43.9 | F67: Ctrl + C = Copy.
B68: 65.85 | F68: Ctrl + V = Paste.
B69: 43.9 | F69: Ctrl + X = Cut.
B70: 99.75 | F70: Ctrl + Shift + Arrow = Select everything up to the first empty cell.
B71: 29.95 | F71: Alt + = (Equal Sign) = Insert SUM function into cell.
B72: 65.85 | F72: Fx + F12 = Save As when keyboards require the Fx Function Key.
B73: 22.95 | F73: Ctrl + Backspace = Jump Back to Active Cell.
B74: 19.95 | F74: Shift + Enter = Puts the content into active cell and moves the selected cell up by one row.
B75: 99.75 | F75: Alt, N, V, T = Open Create PivotTable dialog box.
B76: 124.75 | F76: Alt, N, V = Open Create PivotTable dialog box if you do not have a Power BI Account or you are not logged in.
B77: 21.95 | F77: Alt, P, S, P = Open Page Setup dialog box.
B78: 174.65 | F78: Alt, A, M = Remove Duplicates.
B79: 29.95 | F79: Alt, A, D, M = Open Data Model.
B80: 149.75 | F80: Right-Click Key, B, V = Convert Excel Table to Range.
B81: 29.95 | F81: Alt, “Position of Item in QAT” = Invoke button from QAT based on position of button in QAT.
B82: 45.9
B83: 160.65
B84: 160.65
B85: 119.7
B86: 43.9
B87: 119.7
B88: 65.85
B89: 22.95
B90: 65.85
B91: 109.75
B92: 114.75
B93: 249.5
B94: 109.75
B95: 114.75
B96: 114.75
B97: 119.8
B98: 29.95
B99: 114.75
B100: 209.65
B101: 114.75
B102: 59.85
B103: 124.75
B104: 39.9
B105: 124.75
B106: 24.95
B107: 22.95
B108: 249.5
B109: 59.85
B110: 43.9
B111: 19.95
B112: 29.95
B113: 19.95
B114: 65.85
B115: 22.95
B116: 79.8
B117: 79.8
B118: 114.75
B119: 22.95
B120: 19.95
B121: 109.75
B122: 59.9
B123: 43.9
B124: 39.9
B125: 209.65
B126: 19.95
B127: 79.8
B128: 124.75
B129: 24.95
B130: 160.65
B131: 65.85
B132: 137.7
B133: 29.95
B134: 119.7
B135: 19.95
B136: 39.9
B137: 114.75
B138: 21.95
B139: 179.7
B140: 39.9
B141: 24.95
B142: 99.8
B143: 87.8
B144: 39.9
B145: 65.85
B146: 199.5
B147: 21.95
B148: 124.75
B149: 29.95
B150: 21.95
B151: 119.8
B152: 89.85
B153: 65.85
B154: 91.8
B155: 149.7
B156: 59.85
B157: 131.7
B158: 49.9
B159: 43.9
B160: 19.95
B161: 21.95
B162: 24.95
B163: 39.9
B164: 24.95
B165: 114.75
B166: 119.7
B167: 43.9
B168: 24.95
B169: 174.65
B170: 24.95
B171: 49.9
B172: 19.95
B173: 39.9
B174: 45.9
B175: 179.7
B176: 160.65
B177: 21.95
B178: 124.75
B179: 89.85
B180: 49.9
B181: 22.95
B182: 19.95
B183: 99.75
B184: 91.8
B185: 49.9
B186: 21.95
B187: 45.9
B188: 22.95
B189: 45.9
B190: 24.95
B191: 39.9
B192: 179.7
B193: 21.95
B194: 24.95
B195: 74.85
B196: 79.8
B197: 19.95
B198: 22.95
B199: 45.9
B200: 65.85
B201: 139.65
B202: 22.95
B203: 39.9
B204: 109.75
B205: 160.65
B206: 49.9
B207: 22.95
B208: 45.9
B209: 68.85
B210: 229.5
B211: 29.95
B212: 39.9
B213: 43.9
B214: 19.95
B215: 59.9
B216: 99.75
B217: 174.65
B218: 65.85
B219: 124.75
B220: 87.8
B221: 229.5
B222: 99.75
B223: 19.95
B224: 19.95
B225: 99.8
B226: 24.95
B227: 114.75
B228: 59.85
B229: 43.9
B230: 74.85
B231: 19.95
B232: 22.95
B233: 153.65
B234: 39.9
... 1 more rows

Sheet Cursors

Sheet Formula Elements
B2: Formulas elements (things that can go into formulas): | E2: Full list of worksheet formula elements => Next Sheet
B3: Equal sign as first character in cell to tell Excel you are making a formula
B4: Cell references and table references
B5: Math operators
B6: Numbers (if the number won't change like 12 for months in a year)
B7: Built-in functions (like SUM, COUNTIFS, SUMIFS, AVERAGE, NORM.DIST, RSQ)
B8: Comparative operators (like > and <)
B9: Join Symbol: & (Ampersand)
B10: Text in double quotes (like "Revenue" or ", ")
B12: Math Operators (Shown in Math Order of Operations)
B13: ( ) represents Parentheses | C13: Shift + 9 and Shift + 0
B14: ^ represents Exponents (powers and roots) | C14: Shift + 6 = ^ = caret
B15: * represents Multiplication | C15: * on Number pad
B16: / represents Division | C16: / on Number pad
B17: + represents Addition | C17: + on Number pad
B18: – represents Subtraction | C18: - on Number pad
B20: Comparative Operators
B21: > Greater Than
B22: >= Greater Than Or Equal To
B23: < Less Than
B24: <= Less Than Or Equal To
B25: = Equal To
B26: <> Not Equal To
B28: Join Symbol (Ampersand)
B29: &
B31: Excel Formula Order of Operations:
B32: 1) Parenthesis ( )
B33: 2) Reference Operators: colon, space, comma
B34: Example of colon in range of cells: =SUM(A1:A4)
B35: Example of intersection operator: =E12:G12 F10:F15 (retrieve what is in F12)
B36: Example of comma (union): =SUM(E10:G10,E14:G14)
B37: 3) Negation (-) (give me opposite)
B38: Example: = -2^4 = 16
B39: Example: = -(2^4) = -16
B40: Example: --2+1 = 3
B41: 4) Converts % (1% to .01)
B42: 5) Exponents (^)
B43: Example: 3^2 = 9
B44: Example: 2^3 = 2*2*2 = 8
B45: Example: 4^(1/2) = 2
B46: 6) Multiplication (*) and Division (/), left to right
B47: 7) Adding (+) and Subtracting (-), left to right
B48: 8) Ampersand (&) (Join operator)
B49: 9) Comparative operators: =, <>, >=, <=, <, >

Sheet Full List Worksheet Formula El
B2: Element | C2: Description | D2: Example
B3: Equal Sign | C3: As first character in cell, it tells Excel you are making a formula | D3: =SUM(I2:I6)
B4: Cell References | C4: Four types of cell references: Relative, Absolute, Mixed with Row Locked, Mixed with Column Locked | D4: G2, $G$2, G$2, $G2
B5: Range of Cells | C5: Four types of ranges: Relative, Absolute, Mixed with Row Locked, Mixed with Column Locked | D5: G2:G5, $G$2:$G$5, G$2:G$5, $G2:$G5
B6: Reference Operator: colon | C6: Used in between two cell reference, two sheet names or two lookup functions to create a range of cells | D6: G2:G5, Jan:Apr!C3 XLOOKUP(V2,V3:Z3,V4:Z4):XLOOKUP(W2,V3:Z3,V4:Z4)
B7: Reference Operator: comma | C7: Used to combine ranges. Works in FREQUNCY, IRR, INDEX, AREAS, LET and aggregate functions like SUM and LARGE. Works in Defined Names. | D7: ARGE((V5:Z5,Sales),3)
B8: Reference Operator: space | C8: Used as an intersection operator to get the value at the intersection of two ranges | D8: G2:G6 F4:H4 yields "Quad"
B9: Spilled Range Operator (#) | C9: Spilled Range Operator (#) that allows you to refer to all items that are spilled from a cell with a spilled array formula | D9: C3#
B10: Implicit Intersection Operator (@) | C10: Implicit Intersection Operator (@) allows you to get a corresponding item in the current row of a column or a parallel column. Most commonly seen in relative cell reference in Excel Table columns. | D10: fSales[@Product], @Product, @G2:G6
B11: Data Type Operator (Dot Operator) | C11: For cells that contains a record, the dot allows you to specify what field you want to extra from the cell | D11: [@Stock].Price . B12.Price
B12: Worksheet Reference | C12: Name of worksheet (in single quotes if a space in name) with exclamation point before cell reference. Any one of four cell references allowed. | D12: LookupTable!B3:B6 , 'Lookup Table'!B3:B6
B13: Workbook Reference | C13: Same as Worksheet Reference with name of workbook in square brackets and full file path. Any one of four cell references allowed. | D13: If referenced workbook opened: '[Ch12-Excel365-WorksheetFormulas.xlsx]Elements'!$G$5, If referenced workbook NOT opened: 'F:\[Ch12-Excel365-WorksheetFormulas.xlsx]Elements'!G5
B14: Defined Names | C14: Defined Names are names that can represent a cell, ranges of cells, or formulas. The Defined Names can be used in other formulas and features, including in Power Query and the Power Pivot Data Model. | D14: Example 16 in chapter 12: Defined Name to define a cell: CallRepConditionAnswer ='Ch12(31-34an)'!$G$9 Example 16 in chapter 14: Defined Name to define formula: LookupPicture =XLOOKUP('Ch14(38-40)'!$B$6,'Ch14(38-40)'!$B$9:$B$12,'Ch14(38-40)'!$D$9:$D$12)
B16: Element | C16: Description | D16: Example
B17: Table Formula Nomenclature in an Excel Table that has name fSales, and columns: Date, Product and Sales | C17: Full Table | D17: CallTable[#All]
C18: Records in Table | D18: CallTable
C19: Field Names | D19: CallTable[#Headers]
C20: Mixed with Row Locked Column Reference | D20: CallTable[Rep]
C21: Locked Column Reference | D21: CallTable[[Rep]:[Rep]]
C22: Selected Columns | D22: CallTable[[Rep]:[Calls]]
C23: Relative Cell Reference (Implicit Intersection Operator) | D23: CallTable[@Rep]
B24: Worksheet Functions | C24: Built-in function like SUM and ROUND that are programmed to make a defined calculation based on the formula inputs entered into the function’s arguments | D24: SUM, COUNTIFS, SUMIFS, FORMULATEXT, ROUND, MROUND, UNIQUE, SORT, EDATE, EOMONTH, NETWORKDAYS.INTL, WORKDAY.INTL, AVERAGE, SEQUENCE, LARGE, RANK.EQ, XLOOKUP, FILTER and many more. About 450 in total.
B25: Function argument elements | C25: Some functions require that you select an item from a dropdown list in order to instruct the function which type of calculation to make, like with NETWORKDAYS.INTL that needs a 7 to instruct it to ignore Fridays and Saturdays | D25: NETWORKDAYS.INTL(F2,F2,7)
B26: Math Operators | C26: Used to create math calculations | D26: + Adding - Subtracting or Negation * Multiplying / Dividing ^ Raising to an exponent ( ) Parentheses
B27: Comparative Operator | C27: Used to create comparative calculations | D27: = Equal: are two things equal? <> Not: are two things Not equal? (less & greater than symbol) > Greater than: left side greater than right side? >= Greater than or Equal to: left side >= than right side? < Less than: left side less than right side? <= Less than or Equal to: left side <= than right side?
B28: Join Operator (&) | C28: Ampersand symbol (&) to join two items into one items | D28: C8&", "&B8 , "Item # "&C8:C12
B29: Text within quotation marks | C29: Text in Formulas must be in quotes | D29: C8&", "&B8 , "Item # "&C8:C12
B30: Hard Coded Numbers | C30: When a number will not change, like 12 months in a year or 24 hours in a day, you can hard code it into formula. | D30: C10/12, (EndTime-StartTime)*24
B31: Array constants (hard coded arrays) | C31: Hard coded tables, columns or rows. Curly Brackets house the array: { } Comma means column , Semi-colon means row ; | D31: {"Jan","Feb","Mar","Apr","May";1,2,3,4,5}

Sheet Worksheet Formula Models
B2: Worksheet Formula Models
B3: 1) | C3: Worksheet formulas = tool to make calculations and perform data analysis
C4: Can contain built-in functions (like SUM), math operators, cell references and other formula elements
B5: 2) | C5: Number Formatting as Façade:
C6: Number formatting displays numbers in a certain way without changing the underlying number
C7: Formulas do not act on Number Formatting, they act on underlying value
C8: The General Number format is like an eraser that wipe away all number formatting to see the actual numbers in the cell
B9: 3) | C9: Excel's Golden Rule:
C10: If a formula input can change, put in in a cell, label it and refer to it in formula with reference.
C11: If a formula input will not change, you can type it into formula, like 12 months in a year, 24 hours in a day or 1 to represent a base amount in percentage formulas.
B12: 4) | C12: Document formulas with =IFNA(FORMULATEXT(Cell),"")
B13: 5) | C13: To round a number use the ROUND function. In the second argumnet, 2 rounds to the penny (hundredth), 0 rounds to the dollar (ones position). See picture to right =>
B15: Example 1: | D15: Sales | F15: Sales | H15: Sales | J15: Sales | N15: Sales
B16: What is going on here | D16: 4.49 | F16: 4 | H16: 4.49 | L16: =_xlfn.IFNA(_xlfn.FORMULATEXT(J16),"") ->  | P16: =_xlfn.IFNA(_xlfn.FORMULATEXT(N16),"") -> 
D17: 3.43 | F17: 3 | H17: 3.43
D18: 4.98 | F18: 5 | H18: 4.98
D19: 4.49 | F19: 4 | H19: 4.49
D20: 3.44 | F20: 3 | H20: 3.44
C21: SUM:
D23: =_xlfn.IFNA(_xlfn.FORMULATEXT(D21),"") ->  | N23: =_xlfn.IFNA(_xlfn.FORMULATEXT(N21),"") ->  | Q23: Spilled Range Operator (#) that allows you to refer to all items that are spilled from a cell with a spilled array formula
B28: Example 2:
B29: In the last statistics class 5 out of 62 earned an A grade. Using this past data, estimate the chance (probability) that a student will get an A in the current class.
B30: Build a model that allows you to change formula inputs and which is well documented.

Sheet Worksheet Formula Models (an)
B2: Worksheet Formula Models
B3: 1) | C3: Worksheet formulas = tool to make calculations and perform data analysis
C4: Can contain built-in functions (like SUM), math operators, cell references and other formula elements
B5: 2) | C5: Number Formatting as Façade:
C6: Number formatting displays numbers in a certain way without changing the underlying number
C7: Formulas do not act on Number Formatting, they act on underlying value
C8: The General Number format is like an eraser that wipe away all number formatting to see the actual numbers in the cell
B9: 3) | C9: Excel's Golden Rule:
C10: If a formula input can change, put in in a cell, label it and refer to it in formula with reference.
C11: If a formula input will not change, you can type it into formula, like 12 months in a year, 24 hours in a day or 1 to represent a base amount in percentage formulas.
B12: 4) | C12: Document formulas with =IFNA(FORMULATEXT(Cell),"")
B13: 5) | C13: To round a number use the ROUND function. In the second argumnet, 2 rounds to the penny (hundredth), 0 rounds to the dollar (ones position). See picture to right =>
B15: Example 1: | D15: Sales | F15: Sales | H15: Sales | J15: Sales | N15: Sales
B16: What is going on here | D16: 4.49 | F16: 4 | H16: 4.49 | J16: =ROUND(H16,0) -> 4 | L16: =_xlfn.IFNA(_xlfn.FORMULATEXT(J16),"") -> =ROUND(H16,0) | N16: =ROUND(H16:H20,0) -> 4 | P16: =_xlfn.IFNA(_xlfn.FORMULATEXT(N16),"") -> =ROUND(H16:H20,0)
D17: 3.43 | F17: 3 | H17: 3.43 | J17: =ROUND(H17,0) -> 3 | N17: 3
D18: 4.98 | F18: 5 | H18: 4.98 | J18: 5 | N18: 5
D19: 4.49 | F19: 4 | H19: 4.49 | J19: 4 | N19: 4
D20: 3.44 | F20: 3 | H20: 3.44 | J20: =ROUND(H20,0) -> 3 | N20: 3
C21: SUM: | D21: =SUM(D16:D20) -> 20.83 | F21: =SUM(F16:F20) -> 19 | H21: =SUM(H16:H20) -> 20.83 | J21: =SUM(J16:J20) -> 19 | N21: =SUM(_xlfn.ANCHORARRAY(N16)) -> 19
D23: =_xlfn.IFNA(_xlfn.FORMULATEXT(D21),"") -> =SUM(D16:D20) | F23: =SUM(F16:F20) | H23: =SUM(H16:H20) | J23: =SUM(J16:J20) | N23: =_xlfn.IFNA(_xlfn.FORMULATEXT(N21),"") -> =SUM(N16#)
D25: Spilled Range Operator (#) that allows you to refer to all items that are spilled from a cell with a spilled array formula
B28: Example 2:
B29: In the last statistics class 5 out of 62 earned an A grade. Using this past data, estimate the chance (probability) that a student will get an A in the current class.
B30: Build a model that allows you to change formula inputs and which is well documented.
C32: Past Data: | F32: Formula:
C33: Number of students who earned an A Grade | D33: 5
C34: Total Students | D34: 62
C35: Probability of getting an A | D35: =D33/D34 -> 0.08064516129 | F35: =_xlfn.IFNA(_xlfn.FORMULATEXT(D35),"") -> =D33/D34
F36: =_xlfn.IFNA(_xlfn.FORMULATEXT(D36),"") -> 
C37: Reference to value in D35 | D37: =D35 -> 0.08064516129 | F37: =D35

Sheet Types of Formulas
B2: Formulas by data type:
B3: 1) Number Formulas deliver numbers results (numbers, times, dates).
B4: 2) Text Formulas deliver text results.
B5: 3) Logical Formulas deliver logical values, or Boolean values. These formulas deliver either a TRUE or a FALSE.
B7: Formulas by calculation type:
B8: 1) Aggregate Formulas operate on an array of values and deliver a single answer, like with adding, averaging or running an AND logical test.
B9: 2) Single Input-Output Formulas are formulas that operate on single inputs and deliver a single answer.
B10: This type of formula has single values entered into a function argument, like =FORMULATEXT(B1), or has single values on either side of an operator, like =A1*B1, where the operator is a multiplication operator.
B11: These formulas require that you:
B12: 1) Consider what type of cell references (relative, absolute, mixed) are required.
B13: 2) Enter the formula into one cell, and if the formula must be copied, you must manually copy the formula to other cells.
B14: 3) If you need to edit the formula, you edit the cell and re-copy the formula to other cells if necessary.
B15: Array Formulas are formulas that contain one or more array operations that deliver an array of answers rather than a single answer. The array operation can involve multiple values entered into a function argument, like =FORMULATEXT(B1:B4), or there can be multiple values on one or more sides of an operator, like =A1*B1:B5, or A1:A5*B1, or A1:A5*B1:B5. Array formula is the general term used to describe both types of array formulas:
B16: 3) Dynamic Spilled Array Formulas are array formulas that deliver a spilled array to the worksheet as the final answer.
B17: 4) Scalar Array Formulas are array formulas that deliver a single, scalar value as the final answer.

Sheet Formula Type Examples
B1: Formulas by data type:
A2: 1 | B2: Number Formulas
A3: 2 | B3: Text Formulas
A4: 3 | B4: Logical Formulas
B6: Formulas by calculation type:
A7: 1 | B7: Aggregate Formulas
A8: 2 | B8: Single Input-Output Formulas
A9: 3 | B9: Dynamic Spilled Array Formulas
A10: 4 | B10: Scalar Array Formulas
E11: Formulas by data type | F11: Formulas by calculation type | G11: Formula: | H11: Notes:
B12: Units | C12: Price ($) | E12: Text Formulas | F12: Single Input-Output Formulas | G12: =_xlfn.IFNA(_xlfn.FORMULATEXT(D12),"") -> 
B13: 5 | C13: 15.5 | E13: Number Formulas | F13: Single Input-Output Formulas | G13: =_xlfn.IFNA(_xlfn.FORMULATEXT(D13),"") -> 
B15: Your GPA | C15: GPA required | D15: Past Hurdle?
B16: 3.75 | C16: 3.75 | E16: Logical Formulas | F16: Single Input-Output Formulas | G16: =_xlfn.IFNA(_xlfn.FORMULATEXT(D16),"") ->  | H16: Mode of Cell =>
C18: Students | D18: Test Scores
C19: Student 1 | D19: 87.5
C20: Student 2 | D20: 79.5
C21: Student 3 | D21: 91
C22: Student 4 | D22: 68.9
B24: Average (mean) test score | E24: Number Formulas | F24: Aggregate Formulas | G24: =_xlfn.IFNA(_xlfn.FORMULATEXT(D24),"") ->  | H24: AVERAGE function adds up numbers and divides by count.
B25: Count numbers | E25: Number Formulas | F25: Aggregate Formulas | G25: =_xlfn.IFNA(_xlfn.FORMULATEXT(D25),"") ->  | H25: COUNT counts numbers in a range
B26: Count not empty | E26: Number Formulas | F26: Aggregate Formulas | G26: =_xlfn.IFNA(_xlfn.FORMULATEXT(D26),"") ->  | H26: COUNTA counts not empty cells in a range
B27: Count Rows | E27: Number Formulas | F27: Aggregate Formulas | G27: =_xlfn.IFNA(_xlfn.FORMULATEXT(D27),"") ->  | H27: ROWS counts number of rows in a range
C29: Test Scores (X) | D29: Deviations = X-Mean
C30: 87.5 | E30: Number Formulas | F30: Single Input-Output Formulas | G30: =_xlfn.IFNA(_xlfn.FORMULATEXT(D30),"") ->  | H30: Relative cell reference - absolute cell reference
C31: 79.5 | F31: < < < | H31: Relative reference moves throught copy action
C32: 91 | F32: 1) Use relative and absolute references (F4 key) | H32: Absolute reference (locked) does not move throughout copy action. F4 key adds $ signs.
C33: 68.9 | F33: 2) Enter formula in one cell and copy to other cells
F34: 3) To edit you must edit to cell and re-copy the formula
C35: Test Scores (X) | D35: Deviations = X-Mean
C36: 87.5 | E36: Number Formulas | F36: Dynamic Spilled Array Formulas | G36: =_xlfn.IFNA(_xlfn.FORMULATEXT(D36),"") -> 
C37: 79.5 | F37: < < <
C38: 91 | F38: Highlight all cells that would be relative
C39: 68.9 | F39: Don't have to lock cell reference
F40: Don't have to copy formula
F41: Formula only lives in top cell (all other ones are greyed out)
F42: Editing is done in top cell and edited formula automatically spills down
B44: Number of restaurant banquet rooms = 4
B45: X = Random Discrete Variable = Number of Rooms Used for the Day
B47: X = # Rooms Used | C47: Frequency | D47: Relative Frequency P(X) | F47: X -E(X) | G47: (X - E(X))^2 | H47: (X - E(X))^2 * P(X)
B48: 0 | C48: 2 | D48: 0.02 | F48: =B48-$D$56 -> -2.18 | G48: =F48^2 -> 4.7524 | H48: =G48*D48 -> 0.095048
B49: 1 | C49: 21 | D49: 0.21 | F49: =B49-$D$56 -> -1.18 | G49: =F49^2 -> 1.3924 | H49: =G49*D49 -> 0.292404
B50: 2 | C50: 42 | D50: 0.42 | F50: =B50-$D$56 -> -0.18 | G50: 0.0324 | H50: 0.013608
B51: 3 | C51: 27 | D51: 0.27 | F51: =B51-$D$56 -> 0.82 | G51: 0.6724 | H51: 0.181548
B52: 4 | C52: 8 | D52: 0.08 | F52: =B52-$D$56 -> 1.82 | G52: 3.3124 | H52: 0.264992
B53: Total | C53: 100 | D53: 1 | F53: =SUM(F48:F52) -> -0.9 | G53: s^2 | H53: =SUM(H48:H52) -> 0.8476
G54: s | H54: =SQRT(H53) -> 0.9206519429
B56: Mean = Expected Value = E(x) = µ | D56: =SUM(B48:B52*D48:D52) -> 2.18 | G56: =_xlfn.IFNA(_xlfn.FORMULATEXT(D56:D57),"") -> =SUM(B48:B52*D48:D52)
B57: Population SD = σ | D57: =SQRT(SUM((B48:B52-D56)^2*D48:D52)) -> 0.9206519429 | G57: =SQRT(SUM((B48:B52-D56)^2*D48:D52))

Sheet Formula Type Examples (an)
B1: Formulas by data type:
A2: 1 | B2: Number Formulas
A3: 2 | B3: Text Formulas
A4: 3 | B4: Logical Formulas
B6: Formulas by calculation type:
A7: 1 | B7: Aggregate Formulas
A8: 2 | B8: Single Input-Output Formulas
A9: 3 | B9: Dynamic Spilled Array Formulas
A10: 4 | B10: Scalar Array Formulas
E11: Formulas by data type | F11: Formulas by calculation type | G11: Formula: | H11: Notes:
B12: Units | C12: Price ($) | D12: ="Sales ($) = "&B13&" * "&C13 -> Sales ($) = 5 * 15.5 | E12: Text Formulas | F12: Single Input-Output Formulas | G12: =_xlfn.IFNA(_xlfn.FORMULATEXT(D12),"") -> ="Sales ($) = "&B13&" * "&C13
B13: 5 | C13: 15.5 | D13: =B13*C13 -> 77.5 | E13: Number Formulas | F13: Single Input-Output Formulas | G13: =_xlfn.IFNA(_xlfn.FORMULATEXT(D13),"") -> =B13*C13
B15: Your GPA | C15: GPA required | D15: Past Hurdle?
B16: 3.75 | C16: 3.75 | D16: =B16>=C16 -> TRUE | E16: Logical Formulas | F16: Single Input-Output Formulas | G16: =_xlfn.IFNA(_xlfn.FORMULATEXT(D16),"") -> =B16>=C16 | H16: Mode of Cell =>
C18: Students | D18: Test Scores
C19: Student 1 | D19: 87.5
C20: Student 2 | D20: 79.5
C21: Student 3 | D21: 91
C22: Student 4 | D22: 68.9
B24: Average (mean) test score | D24: =AVERAGE(D19:D22) -> 81.725 | E24: Number Formulas | F24: Aggregate Formulas | G24: =_xlfn.IFNA(_xlfn.FORMULATEXT(D24),"") -> =AVERAGE(D19:D22) | H24: AVERAGE function adds up numbers and divides by count.
B25: Count numbers | D25: =COUNT(D19:D22) -> 4 | E25: Number Formulas | F25: Aggregate Formulas | G25: =_xlfn.IFNA(_xlfn.FORMULATEXT(D25),"") -> =COUNT(D19:D22) | H25: COUNT counts numbers in a range
B26: Count not empty | D26: =COUNTA(C19:C22) -> 4 | E26: Number Formulas | F26: Aggregate Formulas | G26: =_xlfn.IFNA(_xlfn.FORMULATEXT(D26),"") -> =COUNTA(C19:C22) | H26: COUNTA counts not empty cells in a range
B27: Count Rows | D27: =ROWS(C19:C22) -> 4 | E27: Number Formulas | F27: Aggregate Formulas | G27: =_xlfn.IFNA(_xlfn.FORMULATEXT(D27),"") -> =ROWS(C19:C22) | H27: ROWS counts number of rows in a range
C29: Test Scores (X) | D29: Deviations = X-Mean
C30: 87.5 | D30: =(C30-$D$24)^2 -> 33.350625 | E30: Number Formulas | F30: Single Input-Output Formulas | G30: =_xlfn.IFNA(_xlfn.FORMULATEXT(D30),"") -> =(C30-$D$24)^2 | H30: Relative cell reference - absolute cell reference
C31: 79.5 | D31: =(C31-$D$24)^2 -> 4.950625 | F31: < < < | H31: Relative reference moves throught copy action
C32: 91 | D32: 86.025625 | F32: 1) Use relative and absolute references (F4 key) | H32: Absolute reference (locked) does not move throughout copy action. F4 key adds $ signs.
C33: 68.9 | D33: 164.480625 | F33: 2) Enter formula in one cell and copy to other cells
F34: 3) To edit you must edit to cell and re-copy the formula
C35: Test Scores (X) | D35: Deviations = X-Mean
C36: 87.5 | D36: =(C36:C39-D24)^2 -> 33.350625 | E36: Number Formulas | F36: Dynamic Spilled Array Formulas | G36: =_xlfn.IFNA(_xlfn.FORMULATEXT(D36),"") -> =(C36:C39-D24)^2
C37: 79.5 | D37: 4.950625 | F37: < < <
C38: 91 | D38: 86.025625 | F38: Highlight all cells that would be relative
C39: 68.9 | D39: 164.480625 | F39: Don't have to lock cell reference
F40: Don't have to copy formula
F41: Formula only lives in top cell (all other ones are greyed out)
F42: Editing is done in top cell and edited formula automatically spills down
B44: Number of restaurant banquet rooms = 4
B45: X = Random Discrete Variable = Number of Rooms Used for the Day
B47: X = # Rooms Used | C47: Frequency | D47: Relative Frequency P(X) | F47: X -E(X) | G47: (X - E(X))^2 | H47: (X - E(X))^2 * P(X)
B48: 0 | C48: 2 | D48: 0.02 | F48: =B48-$D$56 -> -2.18 | G48: =F48^2 -> 4.7524 | H48: =G48*D48 -> 0.095048
B49: 1 | C49: 21 | D49: 0.21 | F49: =B49-$D$56 -> -1.18 | G49: =F49^2 -> 1.3924 | H49: =G49*D49 -> 0.292404
B50: 2 | C50: 42 | D50: 0.42 | F50: =B50-$D$56 -> -0.18 | G50: 0.0324 | H50: 0.013608
B51: 3 | C51: 27 | D51: 0.27 | F51: =B51-$D$56 -> 0.82 | G51: 0.6724 | H51: 0.181548
B52: 4 | C52: 8 | D52: 0.08 | F52: =B52-$D$56 -> 1.82 | G52: 3.3124 | H52: 0.264992
B53: Total | C53: 100 | D53: 1 | F53: =SUM(F48:F52) -> -0.9 | G53: s^2 | H53: =SUM(H48:H52) -> 0.8476
G54: s | H54: =SQRT(H53) -> 0.9206519429
B56: Mean = Expected Value = E(x) = µ | D56: =SUM(B48:B52*D48:D52) -> 2.18 | G56: =_xlfn.IFNA(_xlfn.FORMULATEXT(D56:D57),"") -> =SUM(B48:B52*D48:D52)
B57: Population SD = σ | D57: =SQRT(SUM((B48:B52-D56)^2*D48:D52)) -> 0.9206519429 | G57: =SQRT(SUM((B48:B52-D56)^2*D48:D52))

Sheet ExcelTables
B2: Single Input-Output Formulas | E2: Dynamic Spilled Array Formulas | H2: Excel Table Formulas
B4: Tax Rate | C4: 0.0975 | E4: Tax Rate | F4: 0.0975 | H4: Tax Rate | I4: 0.0975
B6: Sales | C6: Tax Amount | E6: Sales | F6: Tax Amount | H6: Sales | I6: Tax Amount | L6: Total Sales From Excel Table
B7: 4.49 | E7: 4.49 | H7: 4.49
B8: 3.43 | E8: 3.43 | H8: 3.43
B9: 4.98 | E9: 4.98 | H9: 4.98
B10: 4.49 | E10: 4.49 | H10: 4.49
B11: 3.44 | E11: 3.44 | H11: 3.44
B14: Excel Tables are dynamic because if you add rows or columns, anything pointing to table will update with new data
B15: Things like: formulas, PivotTable, Power Query, Charts and more)
B16: fSales = Excel Table Name
B17: [Sales] = Field Name in an Excel Table
B18: [@Sales] = Relative Cell Reference
B19: Implicit Intersection Operator (@)
B20: Implicit Intersection Operator (@) allows you to get a corresponding item in the current row of a column or a parallel column.

Sheet ExcelTables(an)
B2: Single Input-Output Formulas | E2: Dynamic Spilled Array Formulas | H2: Excel Table Formulas
B4: Tax Rate | C4: 0.0975 | E4: Tax Rate | F4: 0.0975 | H4: Tax Rate | I4: 0.0975
B6: Sales | C6: Tax Amount | E6: Sales | F6: Tax Amount | H6: Sales | I6: Tax Amount | L6: Total Sales From Excel Table
B7: 4.49 | C7: =ROUND(B7*$C$4,2) -> 0.44 | E7: 4.49 | F7: =ROUND(E7:E11*F4,2) -> 0.44 | H7: 4.49 | I7: =ROUND(fSales7[[#This Row],[Sales]]*$I$4,2) -> 0.44 | L7: =SUM(fSales7[Sales]) -> 20.83
B8: 3.43 | C8: =ROUND(B8*$C$4,2) -> 0.33 | E8: 3.43 | F8: 0.33 | H8: 3.43 | I8: =ROUND(fSales7[[#This Row],[Sales]]*$I$4,2) -> 0.33
B9: 4.98 | C9: 0.49 | E9: 4.98 | F9: 0.49 | H9: 4.98 | I9: =ROUND(fSales7[[#This Row],[Sales]]*$I$4,2) -> 0.49
B10: 4.49 | C10: 0.44 | E10: 4.49 | F10: 0.44 | H10: 4.49 | I10: =ROUND(fSales7[[#This Row],[Sales]]*$I$4,2) -> 0.44
B11: 3.44 | C11: 0.34 | E11: 3.44 | F11: 0.34 | H11: 3.44 | I11: =ROUND(fSales7[[#This Row],[Sales]]*$I$4,2) -> 0.34
B14: Excel Tables are dynamic because if you add rows or columns, anything pointing to table will update with new data
B15: Things like: formulas, PivotTable, Power Query, Charts and more)
B16: fSales = Excel Table Name
B17: [Sales] = Field Name in an Excel Table
B18: [@Sales] = Relative Cell Reference
B19: Implicit Intersection Operator (@)
B20: Implicit Intersection Operator (@) allows you to get a corresponding item in the current row of a column or a parallel column.

Sheet % Formulas
B2: Number of restaurant banquet rooms = 4
B3: X = Random Discrete Variable = Number of Rooms Used for the Day
B5: X = # Rooms Used | C5: Frequency | D5: Relative Frequency P(X) | E5: Relative Frequency P(X)
B6: 0 | C6: 2
B7: 1 | C7: 21
B8: 2 | C8: 42
B9: 3 | C9: 27
B10: 4 | C10: 8
B11: Total | C11: =SUM(C6:C10) -> 100
B13: Formula data type: | D13: Number Formulas | E13: Number Formulas
B14: Formula calculation type: | D14: Single Input-Output Formulas | E14: Dynamic Spilled Array Formulas
B15: Formula: | D15: =_xlfn.IFNA(_xlfn.FORMULATEXT(D6:E6),"") -> 
B16: Notes: | D16: % of Total Formula | E16: % of Total Formula
B18: Start Invenment | C18: End Investment | D18: % Change = (End-Begin)/Begin | E18: % Change = End/Begin-1
B19: 75000 | C19: 87500
D21: =_xlfn.IFNA(_xlfn.FORMULATEXT(D19:E19),"") -> 
D23: Change = End - Begin
D24: % Change = (End - Begin)/Begin
D32: % Change - End/Begin-1

Sheet % Formulas (an)
B2: Number of restaurant banquet rooms = 4
B3: X = Random Discrete Variable = Number of Rooms Used for the Day
B5: X = # Rooms Used | C5: Frequency | D5: Relative Frequency P(X) | E5: Relative Frequency P(X)
B6: 0 | C6: 2 | D6: =C6/$C$11 -> 0.02 | E6: =C6:C11/C11 -> 0.02
B7: 1 | C7: 21 | D7: =C7/$C$11 -> 0.21 | E7: 0.21
B8: 2 | C8: 42 | D8: 0.42 | E8: 0.42
B9: 3 | C9: 27 | D9: 0.27 | E9: 0.27
B10: 4 | C10: 8 | D10: 0.08 | E10: 0.08
B11: Total | C11: 100 | D11: =SUM(D6:D10) -> 1 | E11: 1
B13: Formula data type: | D13: Number Formulas | E13: Number Formulas
B14: Formula calculation type: | D14: Single Input-Output Formulas | E14: Dynamic Spilled Array Formulas
B15: Formula: | D15: =_xlfn.IFNA(_xlfn.FORMULATEXT(D6:E6),"") -> =C6/$C$11 | E15: =C6:C11/C11
B16: Notes: | D16: % of Total Formula | E16: % of Total Formula
B18: Start Invenment | C18: End Investment | D18: % Change = (End-Begin)/Begin | E18: % Change = End/Begin-1
B19: 75000 | C19: 87500 | D19: =(C19-B19)/B19 -> 0.1666666667 | E19: =C19/B19-1 -> 0.1666666667
D21: =_xlfn.IFNA(_xlfn.FORMULATEXT(D19:E19),"") -> =(C19-B19)/B19 | E21: =C19/B19-1
D23: Change = End - Begin
D24: % Change = (End - Begin)/Begin
D32: % Change - End/Begin-1

Sheet PowerQueryPivotTableChartNotes
B2: Frequency Distribution = Tabular summary that shows a unique list of nonoverlapping categories with the counts (frequency) for each category
B3: Text files = type of file that is used to get a proper data set from a database to an analytic tool like Excel. "csv" and ".txt" are typical test files. Text files use delimiters.
B4: Delimiter = character that is used to separate bits of data, such as a comma or tab character
B5: Power Query tool is used to import, clean and transform data
B6: Power Query consists of all commands in the Get & Transform Data group and Queries & Connections group in the Data tab in the Excel Ribbon
B7: In this class we will use the Get Data dropdown arrow, From File option to get either: From Text/CSV (".csv" file) or From Workbook (Excel file).
B8: From Text/CSV (".csv" file) Notes:
B9: In the first dialog box be sure that the delimiter is "Comma" when you import a :csv" Text File
B10: In the second dialog box be sure to click the Transform Data button to bring data into the Power Query Editor window
B11: In the Power Query Editor window use can use the user interface to clean and transform the data if necessary
B12: To load the data from the Power Query Editor window to a location, in the Power Query ribbon tab, in the Home tab, in the Close group, click the Close & Load dropdown arrow, then click "Close & Load To" to open the Import Data dialog box
B13: In the Import Data dialog box we will use one of two options:
B14: 1) Click Table dialog button and select new worksheet or existing location (this loads table of data to worksheet). If you make a PivotTable from this table and source data changes, to refresh you must refresh both the query table and the PivotTable (right-click Refresh each one separately)..
B15: 2) Click PivotTable Report dialog button (loads data to the behind the scenes PivotTable cache and allows you to create a PivotTable). If source data changes, you refresh only the PivotTable (right-click refresh).
B16: Setting Data Types in Power Query helps to assure that the calculations made in the worksheet will work correctly.
B17: PivotTable tool is used to create summary reports based on conditional calculations
B18: #1 tool in the world to take proper data sets (table) and convert then into summary reports with conditional calculations.
B19: Conditional calculation means that you make a calculation like counting or summing, not on all the values in the column, but on variable data from a unique list.
B20: To create a PivotTable report from a table, click in one cell in the table, click Insert tab in the Excel Ribbon, in the Table group click the PivotTable dropdown arrow and then select: From Table/Range (if table is in worksheet)
B21: When you build a PivotTable report, the source table of data is added to the PivotTable Cache, which is a behind the scenes location to store a second occurrence of table.
B22: If data in the source table of data changes, you must refresh PivotTable Cache. You can refresh by right-clicking the PivotTable and clicking on "Refresh".
B23: Dragging a fields from the PivotTable Fields task pane field list to the Row or Column area creates a unique list of items from the column. These items are the conditions for the calculations in the Values area.
B24: Dragging a fields from the PivotTable Fields task pane field list to the Values area allows you to make a calculation on that field.
B25: Right-click Values area, point to Summarize Values By, then in sub menu click to change the aggregate calculation (aggregate function)
B26: Right-click Values area, click on Show Values As, then in sub menu click to change the calculation to calculation such as "% of Column Total", "Running Total In", "% of Grand Total" and more
B27: To add Number Formatting to Values area field, right-click Values area, click on Number Formatting
B28: To group numbers in a PivotTable, drag number field to Row area, right-click Row area, click Group. In the Group dialog box, the lower limit for the first group is set in the Staring at text box, the upper limit for the last group is set in the Ending at text box, and the width for each group is set in the By textbox.
B29: If you are grouping whole numbers, such as 1, 2, 3, 4, 5, 6…, if you use Starting at = 1, Ending At = 6, and By = 3, the categories will be: 1-3, 4-6…
B30: If you are grouping decimal numbers, such as 9.1, 10.2, 22.7, 27.2, 31.2, 34.6…, if you use Starting at = 0, Ending At = 40, and By = 10, the categories will be: 0-10, 10-20…
B31: If you group numbers, dates or times, the grouping is saved in the PivotTable Cache.
B32: To show grouping categories that do not have data, right-click the Rows area in the PivotTable report, click Field Settings, then in the Field Settings dialog box, click the Layout & Print tab, check the checkbox for "Show items with no data".
B33: Prevent PivotTable from Auto fitting column width: right-click PivotTable, click PivotTable options, on the Display & Format tab, uncheck the check box for "Autofit Column widths on update"

Sheet Second Frequency Distribution
A3: Phones | B3: Frequency | C3: % Frequency
A4: Apple iPhone 6 | B4: 41 | C4: 0.205
A5: Apple iPhone 6 Plus | B5: 36 | C5: 0.18
A6: LG G3 | B6: 13 | C6: 0.065
A7: Motorola Moto G | B7: 6 | C7: 0.03
A8: Samsung Galaxy Note 4 | B8: 56 | C8: 0.28
A9: Samsung Galaxy S5 | B9: 25 | C9: 0.125
A10: Sony Xperia Z3 | B10: 23 | C10: 0.115
A11: Grand Total | B11: 200 | C11: 1

Sheet PivotTables
B2: Sample of Phone Purchases
B3: Apple iPhone 6
B4: Apple iPhone 6
B5: Apple iPhone 6
B6: Samsung Galaxy Note 4
B7: Apple iPhone 6 Plus
B8: Samsung Galaxy S5
B9: Samsung Galaxy S5
B10: Apple iPhone 6 Plus
B11: Apple iPhone 6
B12: Apple iPhone 6
B13: Samsung Galaxy Note 4
B14: Samsung Galaxy S5
B15: Apple iPhone 6 Plus
B16: Apple iPhone 6
B17: Motorola Moto G
B18: Apple iPhone 6
B19: Samsung Galaxy Note 4
B20: LG G3
B21: Samsung Galaxy Note 4
B22: Samsung Galaxy Note 4
B23: Sony Xperia Z3
B24: Samsung Galaxy Note 4
B25: Apple iPhone 6
B26: Samsung Galaxy Note 4
B27: Sony Xperia Z3
B28: Apple iPhone 6
B29: Motorola Moto G
B30: Motorola Moto G
B31: Samsung Galaxy S5
B32: Sony Xperia Z3
B33: Apple iPhone 6
B34: Samsung Galaxy Note 4
B35: Samsung Galaxy S5
B36: Sony Xperia Z3
B37: Samsung Galaxy Note 4
B38: Apple iPhone 6 Plus
B39: Apple iPhone 6 Plus
B40: LG G3
B41: Samsung Galaxy Note 4
B42: Sony Xperia Z3
B43: Samsung Galaxy Note 4
B44: Samsung Galaxy Note 4
B45: Apple iPhone 6
B46: Sony Xperia Z3
B47: Samsung Galaxy Note 4
B48: Samsung Galaxy Note 4
B49: Apple iPhone 6
B50: Apple iPhone 6 Plus
B51: Samsung Galaxy Note 4
B52: Apple iPhone 6
B53: Samsung Galaxy Note 4
B54: LG G3
B55: Sony Xperia Z3
B56: Apple iPhone 6 Plus
B57: Apple iPhone 6
B58: Apple iPhone 6 Plus
B59: Sony Xperia Z3
B60: Samsung Galaxy Note 4
B61: Apple iPhone 6
B62: Samsung Galaxy S5
B63: Samsung Galaxy S5
B64: Samsung Galaxy Note 4
B65: Samsung Galaxy Note 4
B66: Samsung Galaxy Note 4
B67: Samsung Galaxy Note 4
B68: Samsung Galaxy S5
B69: Sony Xperia Z3
B70: Apple iPhone 6 Plus
B71: Sony Xperia Z3
B72: Apple iPhone 6 Plus
B73: Samsung Galaxy Note 4
B74: Samsung Galaxy S5
B75: Samsung Galaxy S5
B76: Apple iPhone 6
B77: Apple iPhone 6
B78: Apple iPhone 6
B79: Samsung Galaxy S5
B80: Motorola Moto G
B81: Apple iPhone 6
B82: Apple iPhone 6 Plus
B83: Samsung Galaxy S5
B84: Samsung Galaxy S5
B85: Apple iPhone 6 Plus
B86: Apple iPhone 6
B87: Apple iPhone 6 Plus
B88: Sony Xperia Z3
B89: Sony Xperia Z3
B90: LG G3
B91: Samsung Galaxy Note 4
B92: Sony Xperia Z3
B93: Apple iPhone 6
B94: Apple iPhone 6
B95: Samsung Galaxy Note 4
B96: Apple iPhone 6 Plus
B97: Samsung Galaxy S5
B98: Samsung Galaxy Note 4
B99: Sony Xperia Z3
B100: Samsung Galaxy Note 4
B101: Samsung Galaxy S5
B102: Samsung Galaxy Note 4
B103: Samsung Galaxy Note 4
B104: Samsung Galaxy S5
B105: Samsung Galaxy Note 4
B106: Apple iPhone 6 Plus
B107: Apple iPhone 6 Plus
B108: Apple iPhone 6
B109: Samsung Galaxy S5
B110: Samsung Galaxy Note 4
B111: LG G3
B112: Samsung Galaxy S5
B113: LG G3
B114: LG G3
B115: Apple iPhone 6
B116: Samsung Galaxy Note 4
B117: Apple iPhone 6 Plus
B118: Apple iPhone 6
B119: Apple iPhone 6
B120: Samsung Galaxy Note 4
B121: Samsung Galaxy Note 4
B122: Apple iPhone 6
B123: Samsung Galaxy Note 4
B124: Sony Xperia Z3
B125: Apple iPhone 6
B126: Apple iPhone 6 Plus
B127: Sony Xperia Z3
B128: Samsung Galaxy Note 4
B129: Samsung Galaxy Note 4
B130: Apple iPhone 6 Plus
B131: Samsung Galaxy Note 4
B132: Apple iPhone 6 Plus
B133: Samsung Galaxy Note 4
B134: Apple iPhone 6
B135: Apple iPhone 6
B136: Apple iPhone 6
B137: Motorola Moto G
B138: Samsung Galaxy Note 4
B139: Sony Xperia Z3
B140: Apple iPhone 6 Plus
B141: Samsung Galaxy S5
B142: LG G3
B143: Samsung Galaxy S5
B144: Apple iPhone 6 Plus
B145: Apple iPhone 6
B146: Apple iPhone 6
B147: Samsung Galaxy Note 4
B148: Apple iPhone 6 Plus
B149: Apple iPhone 6
B150: Apple iPhone 6
B151: Apple iPhone 6 Plus
B152: Samsung Galaxy Note 4
B153: Apple iPhone 6
B154: Sony Xperia Z3
B155: LG G3
B156: LG G3
B157: Sony Xperia Z3
B158: Samsung Galaxy Note 4
B159: Apple iPhone 6 Plus
B160: Apple iPhone 6 Plus
B161: Apple iPhone 6 Plus
B162: Samsung Galaxy Note 4
B163: Apple iPhone 6 Plus
B164: Samsung Galaxy Note 4
B165: Samsung Galaxy Note 4
B166: Samsung Galaxy S5
B167: Apple iPhone 6 Plus
B168: Samsung Galaxy Note 4
B169: Samsung Galaxy Note 4
B170: Apple iPhone 6
B171: Samsung Galaxy S5
B172: Apple iPhone 6 Plus
B173: Apple iPhone 6
B174: Apple iPhone 6 Plus
B175: Sony Xperia Z3
B176: Samsung Galaxy Note 4
B177: Samsung Galaxy S5
B178: Apple iPhone 6
B179: Apple iPhone 6 Plus
B180: Samsung Galaxy Note 4
B181: Apple iPhone 6
B182: Samsung Galaxy Note 4
B183: LG G3
B184: Apple iPhone 6
B185: Motorola Moto G
B186: Sony Xperia Z3
B187: Apple iPhone 6 Plus
B188: Apple iPhone 6 Plus
B189: Samsung Galaxy S5
B190: Sony Xperia Z3
B191: Apple iPhone 6 Plus
B192: Apple iPhone 6 Plus
B193: LG G3
B194: Samsung Galaxy Note 4
B195: Samsung Galaxy Note 4
B196: Samsung Galaxy Note 4
B197: Samsung Galaxy Note 4
B198: Samsung Galaxy S5
B199: Sony Xperia Z3
B200: LG G3
B201: Samsung Galaxy Note 4
... 1 more rows

Sheet PivotTables (an)
L1: Exceλambda Spilled Formula:
B2: Sample of Phone Purchases | D2: Phones | E2: Frequency | F2: % Frequency | L2: =_xlfn.LAMBDA(_xlpm.a,_xlop.p,_xlfn.LET(_xlpm.u,_xlfn._xlws.SORT(_xlfn.UNIQUE(_xlpm.a)),_xlpm.r,_xlfn.BYROW(_xlpm.u,_xlfn.LAMBDA(_xlpm.u,SUM(--(_xlpm.a=_xlpm.u)))),_xlpm.f,CHOOSE({1,2,3},_xlpm.u,_xlpm.r,_xlpm.r/COUNTA(_xlpm.a)),IF(_xlpm.p,_xlpm.f,CHOOSE({1,2},_xlpm.u,_xlpm.r))))(B3:B202,1) -> Apple iPhone 6 | M2: 41 | N2: 0.205
B3: Apple iPhone 6 | D3: Apple iPhone 6 | E3: 41 | F3: 0.205 | L3: Apple iPhone 6 Plus | M3: 36 | N3: 0.18
B4: Apple iPhone 6 | D4: Apple iPhone 6 Plus | E4: 36 | F4: 0.18 | L4: LG G3 | M4: 13 | N4: 0.065
B5: Apple iPhone 6 | D5: LG G3 | E5: 13 | F5: 0.065 | L5: Motorola Moto G | M5: 6 | N5: 0.03
B6: Samsung Galaxy Note 4 | D6: Motorola Moto G | E6: 6 | F6: 0.03 | L6: Samsung Galaxy Note 4 | M6: 56 | N6: 0.28
B7: Apple iPhone 6 Plus | D7: Samsung Galaxy Note 4 | E7: 56 | F7: 0.28 | L7: Samsung Galaxy S5 | M7: 25 | N7: 0.125
B8: Samsung Galaxy S5 | D8: Samsung Galaxy S5 | E8: 25 | F8: 0.125 | L8: Sony Xperia Z3 | M8: 23 | N8: 0.115
B9: Samsung Galaxy S5 | D9: Sony Xperia Z3 | E9: 23 | F9: 0.115
B10: Apple iPhone 6 Plus | D10: Grand Total | E10: 200 | F10: 1 | L10: a: array, list, range, table column
B11: Apple iPhone 6 | L11: [p]: percentage argument, 0 or omitted only 2 clms report array, prod and frequency ; 1 (or <>0) 3 clms report including percentage
B12: Apple iPhone 6
B13: Samsung Galaxy Note 4
B14: Samsung Galaxy S5 | L14: Exceλambda Spilled Formula:
B15: Apple iPhone 6 Plus | L15: =_xlfn.LAMBDA(_xlpm.a,_xlop.by,_xlop.s,_xlop.e,_xlfn.LET(_xlpm.m,IF(_xlpm.s,_xlpm.s,MIN(_xlpm.a)),_xlpm.x,IF(_xlpm.e,_xlpm.e,MAX(_xlpm.a)),IF(_xlpm.by=0,CHOOSE({1;2},_xlpm.m,_xlpm.x), _xlfn.LET(_xlpm.n,ROUNDUP((_xlpm.x-_xlpm.m+1)/_xlpm.by,0),_xlpm.k,_xlfn.SEQUENCE(_xlpm.n,,_xlpm.m,_xlpm.by),_xlpm.l,_xlpm.k+_xlpm.by, _xlpm.p,_xlfn.MAP(_xlpm.k,_xlpm.l,_xlfn.LAMBDA(_xlpm.x,_xlpm.y,SUM((_xlpm.a>=_xlpm.x)*(_xlpm.a<_xlpm.y)))),_xlfn._xlws.FILTER(CHOOSE({1,2},_xlpm.k&" <="&" val "&"< "&_xlpm.l,_xlpm.p),_xlpm.p<>0)))))(B3:B202) -> 0
B16: Apple iPhone 6 | L16: 0
B17: Motorola Moto G
B18: Apple iPhone 6 | L18: a: array, range, table column
B19: Samsung Galaxy Note 4 | L19: [by]: by argument, when omitted returns min and max values
B20: LG G3 | L20: [s]: start, if omitted will take value min(a)
B21: Samsung Galaxy Note 4 | L21: [e]: end, if omitted will take value max(a)
B22: Samsung Galaxy Note 4 | L22: (same parameters like in PT grouping)
B23: Sony Xperia Z3
B24: Samsung Galaxy Note 4
B25: Apple iPhone 6
B26: Samsung Galaxy Note 4
B27: Sony Xperia Z3
B28: Apple iPhone 6
B29: Motorola Moto G
B30: Motorola Moto G
B31: Samsung Galaxy S5
B32: Sony Xperia Z3
B33: Apple iPhone 6
B34: Samsung Galaxy Note 4
B35: Samsung Galaxy S5
B36: Sony Xperia Z3
B37: Samsung Galaxy Note 4
B38: Apple iPhone 6 Plus
B39: Apple iPhone 6 Plus
B40: LG G3
B41: Samsung Galaxy Note 4
B42: Sony Xperia Z3
B43: Samsung Galaxy Note 4
B44: Samsung Galaxy Note 4
B45: Apple iPhone 6
B46: Sony Xperia Z3
B47: Samsung Galaxy Note 4
B48: Samsung Galaxy Note 4
B49: Apple iPhone 6
B50: Apple iPhone 6 Plus
B51: Samsung Galaxy Note 4
B52: Apple iPhone 6
B53: Samsung Galaxy Note 4
B54: LG G3
B55: Sony Xperia Z3
B56: Apple iPhone 6 Plus
B57: Apple iPhone 6
B58: Apple iPhone 6 Plus
B59: Sony Xperia Z3
B60: Samsung Galaxy Note 4
B61: Apple iPhone 6
B62: Samsung Galaxy S5
B63: Samsung Galaxy S5
B64: Samsung Galaxy Note 4
B65: Samsung Galaxy Note 4
B66: Samsung Galaxy Note 4
B67: Samsung Galaxy Note 4
B68: Samsung Galaxy S5
B69: Sony Xperia Z3
B70: Apple iPhone 6 Plus
B71: Sony Xperia Z3
B72: Apple iPhone 6 Plus
B73: Samsung Galaxy Note 4
B74: Samsung Galaxy S5
B75: Samsung Galaxy S5
B76: Apple iPhone 6
B77: Apple iPhone 6
B78: Apple iPhone 6
B79: Samsung Galaxy S5
B80: Motorola Moto G
B81: Apple iPhone 6
B82: Apple iPhone 6 Plus
B83: Samsung Galaxy S5
B84: Samsung Galaxy S5
B85: Apple iPhone 6 Plus
B86: Apple iPhone 6
B87: Apple iPhone 6 Plus
B88: Sony Xperia Z3
B89: Sony Xperia Z3
B90: LG G3
B91: Samsung Galaxy Note 4
B92: Sony Xperia Z3
B93: Apple iPhone 6
B94: Apple iPhone 6
B95: Samsung Galaxy Note 4
B96: Apple iPhone 6 Plus
B97: Samsung Galaxy S5
B98: Samsung Galaxy Note 4
B99: Sony Xperia Z3
B100: Samsung Galaxy Note 4
B101: Samsung Galaxy S5
B102: Samsung Galaxy Note 4
B103: Samsung Galaxy Note 4
B104: Samsung Galaxy S5
B105: Samsung Galaxy Note 4
B106: Apple iPhone 6 Plus
B107: Apple iPhone 6 Plus
B108: Apple iPhone 6
B109: Samsung Galaxy S5
B110: Samsung Galaxy Note 4
B111: LG G3
B112: Samsung Galaxy S5
B113: LG G3
B114: LG G3
B115: Apple iPhone 6
B116: Samsung Galaxy Note 4
B117: Apple iPhone 6 Plus
B118: Apple iPhone 6
B119: Apple iPhone 6
B120: Samsung Galaxy Note 4
B121: Samsung Galaxy Note 4
B122: Apple iPhone 6
B123: Samsung Galaxy Note 4
B124: Sony Xperia Z3
B125: Apple iPhone 6
B126: Apple iPhone 6 Plus
B127: Sony Xperia Z3
B128: Samsung Galaxy Note 4
B129: Samsung Galaxy Note 4
B130: Apple iPhone 6 Plus
B131: Samsung Galaxy Note 4
B132: Apple iPhone 6 Plus
B133: Samsung Galaxy Note 4
B134: Apple iPhone 6
B135: Apple iPhone 6
B136: Apple iPhone 6
B137: Motorola Moto G
B138: Samsung Galaxy Note 4
B139: Sony Xperia Z3
B140: Apple iPhone 6 Plus
B141: Samsung Galaxy S5
B142: LG G3
B143: Samsung Galaxy S5
B144: Apple iPhone 6 Plus
B145: Apple iPhone 6
B146: Apple iPhone 6
B147: Samsung Galaxy Note 4
B148: Apple iPhone 6 Plus
B149: Apple iPhone 6
B150: Apple iPhone 6
B151: Apple iPhone 6 Plus
B152: Samsung Galaxy Note 4
B153: Apple iPhone 6
B154: Sony Xperia Z3
B155: LG G3
B156: LG G3
B157: Sony Xperia Z3
B158: Samsung Galaxy Note 4
B159: Apple iPhone 6 Plus
B160: Apple iPhone 6 Plus
B161: Apple iPhone 6 Plus
B162: Samsung Galaxy Note 4
B163: Apple iPhone 6 Plus
B164: Samsung Galaxy Note 4
B165: Samsung Galaxy Note 4
B166: Samsung Galaxy S5
B167: Apple iPhone 6 Plus
B168: Samsung Galaxy Note 4
B169: Samsung Galaxy Note 4
B170: Apple iPhone 6
B171: Samsung Galaxy S5
B172: Apple iPhone 6 Plus
B173: Apple iPhone 6
B174: Apple iPhone 6 Plus
B175: Sony Xperia Z3
B176: Samsung Galaxy Note 4
B177: Samsung Galaxy S5
B178: Apple iPhone 6
B179: Apple iPhone 6 Plus
B180: Samsung Galaxy Note 4
B181: Apple iPhone 6
B182: Samsung Galaxy Note 4
B183: LG G3
B184: Apple iPhone 6
B185: Motorola Moto G
B186: Sony Xperia Z3
B187: Apple iPhone 6 Plus
B188: Apple iPhone 6 Plus
B189: Samsung Galaxy S5
B190: Sony Xperia Z3
B191: Apple iPhone 6 Plus
B192: Apple iPhone 6 Plus
B193: LG G3
B194: Samsung Galaxy Note 4
B195: Samsung Galaxy Note 4
B196: Samsung Galaxy Note 4
B197: Samsung Galaxy Note 4
B198: Samsung Galaxy S5
B199: Sony Xperia Z3
B200: LG G3
... 6 more rows

Sheet Power Query & PivotTables

Sheet Power Query & PivotTables (an)
B2: Truck Element | C2: Overall Score | D2: Recommended | E2: Owner Satisfaction | F2: Overall Miles Per Gallon | G2: Acceleration (0-60) Sec | I2: Recommended | J2: Frequency
B3: Flair - D-150 | C3: 87 | D3: Yes | E3: ** | F3: 24 | G3: 9.5 | I3: No | J3: 9
B4: Tyro - Thunder | C4: 86 | D4: No | E4: *** | F4: 23 | G4: 10.3 | I4: Yes | J4: 12
B5: Caliber - Silver 1500 Hybrid | C5: 84 | D5: Yes | E5: *** | F5: 26 | G5: 8.7 | I5: Grand Total | J5: 21
B6: ABC - Nevada 1500 | C6: 84 | D6: Yes | E6: *** | F6: 25 | G6: 10.3
B7: Nights - NP200 | C7: 84 | D7: No | E7: **** | F7: 23 | G7: 9.8
B8: Tyro - Seattle | C8: 83 | D8: Yes | E8: ***** | F8: 25 | G8: 9 | I8: Overall Score | J8: Frequency
B9: Caliber - Silver 2500 HD | C9: 83 | D9: Yes | E9: *** | F9: 27 | G9: 8.6 | I9: 64-67 | J9: 3
B10: Impetus - F-Max | C10: 83 | D10: No | E10: ** | F10: 22 | G10: 7.2 | I10: 68-71 | J10: 1
B11: Flair - F-150 Eagle | C11: 82 | D11: Yes | E11: **** | F11: 24 | G11: 8.6 | I11: 76-79 | J11: 5
B12: Caliber - Silver 3500 HD | C12: 81 | D12: Yes | E12: *** | F12: 24 | G12: 9.3 | I12: 80-83 | J12: 7
B13: Victory - Treck | C13: 81 | D13: Yes | E13: ***** | F13: 22 | G13: 10.2 | I13: 84-87 | J13: 5
B14: Nights - 1000 | C14: 80 | D14: Yes | E14: **** | F14: 25 | G14: 10.3 | I14: Grand Total | J14: 21
B15: Flair - D-350 | C15: 79 | D15: Yes | E15: ** | F15: 23 | G15: 10.1
B16: ABC - Nevada 2500 | C16: 77 | D16: No | E16: ** | F16: 24 | G16: 10
B17: ABC - Nevada 3500 | C17: 76 | D17: No | E17: ** | F17: 31 | G17: 10.1 | I17: Acceleration (0-60) Sec (Upper Limit NOT Included) | J17: Frequency
B18: Tyro - Land Hugger 43 | C18: 76 | D18: No | E18: ** | F18: 26 | G18: 8.7 | I18: 7<= Seconds <8 | J18: 1
B19: Jazz - Gladiator | C19: 76 | D19: No | E19: * | F19: 22 | G19: 10.9 | I19: 8<= Seconds <9 | J19: 6
B20: Flair - D-250 | C20: 71 | D20: Yes | E20: *** | F20: 23 | G20: 9.6 | I20: 9<= Seconds <10 | J20: 6
B21: Flair - D-450 | C21: 67 | D21: Yes | E21: ** | F21: 21 | G21: 8.5 | I21: 10<= Seconds <11 | J21: 8
B22: Nights - Frontier | C22: 66 | D22: No | E22: ** | F22: 24 | G22: 9.8 | I22: Grand Total | J22: 21
B23: ABC - Nevada Hybrid | C23: 64 | D23: No | E23: ** | F23: 26 | G23: 8.4
I26: 7 up to 8
I27: 7 <= Seconds < 8
I30: Overall Score | L30: Acceleration (0-60) Sec
I31: 64-67 | L31: 7.2
I32: 68-71 | L32: 8.4
I33: 76-79 | L33: 8.5
I34: 80-83 | L34: 8.6
I35: 84-87 | L35: 8.7
I36: Grand Total | L36: 9
L37: 9.3
L38: 9.5
L39: 9.6
L40: 9.8
L41: 10
L42: 10.1
L43: 10.2
L44: 10.3
L45: 10.9
L46: Grand Total
